Workbook

Sheet Sheet1
B1: Vapor-Liquid Equilibrium - Constant Temperature with the Peng-Robinson Equation of State
I2: For Educational Use Only!
F3: Report errors to R. L. Smith; Email: smith@scf.che.tohoku.ac.jp
A4: =COLUMN() -> 1 | B4: =COLUMN() -> 2 | C4: =COLUMN() -> 3 | D4: =COLUMN() -> 4 | E4: =COLUMN() -> 5 | F4: =COLUMN() -> 6 | G4: =COLUMN() -> 7 | H4: =COLUMN() -> 8 | I4: =COLUMN() -> 9 | J4: =COLUMN() -> 10 | K4: =COLUMN() -> 11 | L4: =COLUMN() -> 12 | M4: =COLUMN() -> 13 | N4: =COLUMN() -> 14 | O4: =COLUMN() -> 15 | P4: =COLUMN() -> 16 | Q4: =COLUMN() -> 17 | R4: =COLUMN() -> 18 | S4: =COLUMN() -> 19 | T4: =COLUMN() -> 20 | U4: =COLUMN() -> 21 | V4: =COLUMN() -> 22 | W4: =COLUMN() -> 23
D5: Pure component properties | N5: Binary Interaction
N6: Parameters
B7: No. | C7: Substance Name | D7: Formula | E7: Mw | F7: Tc / K | G7: Pc/ Pa | H7: Acentric factor | N7: amix term k(i,j) | O7: j = 1 | P7: 2 | R7: bmix term l(i,j) | S7: j=1 | T7: 2
B8: 1 | C8: Carbon Dioxide | D8: CO2 | E8: 44.01 | F8: 304.1 | G8: 7380000 | H8: 0.225 | I8: solvent | N8: i = 1 | O8: 0 | P8: 0.2898675426 | R8: i=1 | S8: 0 | T8: 0.07551858392
B9: 2 | C9: Biphenyl | D9: C12H10 | E9: 154.211 | F9: 773 | G9: 3380000 | H9: 0.404 | I9: liquid solute | N9: 2 | O9: =P8 -> 0.2898675426 | P9: 0 | R9: 2 | S9: =T8 -> 0.07551858392 | T9: 0
F10: =F8-273.15 -> 30.95
F11: =F9-273.15 -> 499.85
D13: Temperature [oC]: | E13: 300 | F13: Minimum | AF13: pure substance specifications
E14: Calculation range | F14: Pstart [MPa] | G14: =COLUMN()-7 -> 0 | H14: =COLUMN()-7 -> 1 | I14: 2 | J14: 3 | K14: 4 | L14: 5 | M14: 6 | N14: 7 | O14: 8 | P14: 9 | Q14: 10 | R14: 11 | S14: 12 | T14: 13 | U14: 14 | V14: 15 | W14: 16 | X14: 17 | AF14: xi(1), yi(1) | AG14: 1
D15: Pstart [MPa]: | E15: 0.1 | F15: =ROUNDUP(PSatPREOS_TcinK_PcinPa_w_TinC($F$9,$G$9,$H$9,$E$13)/1000000,4) -> 0.2471 | G15: (P2sat) | J15: Data Table for Calculations | U15: Number of | AF15: xi(2), yi(2) | AG15: 0
D16: Pend [MPa]: | E16: 200 | T16: Relative | U16: Iterations
D17: Pinc [MPa]: | E17: 0.5 | F17: estimated Ki | J17: Vapor phase properties | O17: Liquid phase properties | S17: Equilibrium ratios, Ki=yi/xi | T17: volatility | U17: Ki | W17: Notes | AF17: xi(1), yi(1) | AG17: 0
C18: Optional initialization: | D18: K1: | F18: =K1inf_Tci_Pci_wi_kijm_lijm_TinC_PinPa($F$8:$F$9,$G$8:$G$9,$H$8:$H$9,$O$8:$P$9,$S$8:$T$9,$E$13,$F$15*1000000+10000) -> 143.6657504 | G18: P [MPa] | H18: y(1) [-] | I18: y(2) [-] | J18: fv(1) [Pa] | K18: fv(2) [Pa] | L18: rho [kg/m3] | M18: x(1) [-] | N18: x(2) [-] | O18: fL(1) [Pa] | P18: fL(2) [Pa] | Q18: rho [kg/m3] | R18: K(1) [-] | S18: K(2) [-] | T18: K(2)/K(1) [-] | U18: N | AB18: T [C] | AC18: 300 | AF18: xi(2), yi(2) | AG18: 1
C19: Leave blank for self-initialization | D19: K2: | F19: =KWilson_Tc_Pc_w_TinC_PinPa($F$9,$G$9,$H$9,$E$13,F15*1000000+10000) -> 0.9472217403 | G19: 0.2471986944 | H19: 0.0003727135023 | I19: 0.9996272865 | J19: 98.42424984 | K19: 229858.8702 | L19: 8.641636651 | M19: 2.487368213e-06 | N19: 0.9999975126 | O19: 98.42424939 | P19: 229858.8702 | Q19: 776.8910304 | R19: 149.8425124 | S19: 0.9996297729 | T19: 0.006671202698 | U19: 4 | V19: Number of substances: 2 | AB19: P [MPa] | AC19: 1
D20: Convergence Criteria | G20: 0.7471986944 | H20: 0.6435778376 | I20: 0.3564221624 | J20: 491209.8117 | K20: 231808.3345 | L20: 13.54601152 | M20: 0.01227960509 | N20: 0.9877203949 | O20: 491209.9583 | P20: 231808.2096 | Q20: 776.8649508 | R20: 52.41030417 | S20: 0.3608532983 | T20: 0.006885159399 | U20: 7
G21: 1.247198694 | H21: 0.7776504351 | I21: 0.2223495649 | J21: 980311.7314 | K21: 233799.1736 | L21: 18.47507215 | M21: 0.02424798058 | N21: 0.9757520194 | O21: 980311.9986 | P21: 233798.9507 | Q21: 776.8381466 | R21: 32.07072987 | S21: 0.2278750753 | T21: 0.007105390996 | U21: 7 | AA21: y1 | AB21: y2 | AC21: ysum | AD21: gL | AE21: ln (x1) | AF21: ln phiL1 | AG21: ln phiL1,pure | AH21: ln(x2) | AI21: ln phiL2 | AJ21: ln phiL2,pure | AK21: gV | AL21: ln (y1) | AM21: ln phiV1 | AN21: ln phiV1,pure | AO21: ln(y2) | AP21: ln phiV2 | AQ21: ln phiV2,pure
G22: 1.747198694 | H22: 0.83557123 | I22: 0.16442877 | J22: 1467448.203 | K22: 235831.5798 | L22: 23.42856529 | M22: 0.03592325134 | N22: 0.9640767487 | O22: 1467448.487 | P22: 235831.3472 | Q22: 776.8110738 | R22: 23.2598999 | S22: 0.1705556847 | T22: 0.007332606138 | U22: 7 | AA22: =(1-AB22) -> 0.99999999 | AB22: 1e-08 | AC22: =SUM(AA22:AB22) -> 1 | AD22: =AA22*(AF22+AE22-AG22)+AB22*(AI22+AH22-AJ22) -> -1.802092884e-07 | AE22: =LN(AA22) -> -1.00000001e-08 | AF22: =LnPhiL_i_Tci_Pci_wi_kijm_lijm_T_P_xyi(1,$F$8:$F$9,$G$8:$G$9,$H$8:$H$9,$O$8:$P$9,$S$8:$T$9,$AC$18,$AC$19*1000000,AA22:AB22) -> -0.003794104548 | AG22: =LnPhiL_i_Tci_Pci_wi_kijm_lijm_T_P_xyi(1,$F$8:$F$9,$G$8:$G$9,$H$8:$H$9,$O$8:$P$9,$S$8:$T$9,$AC$18,$AC$19*1000000,$AG$14:$AG$15) -> -0.003794104548 | AH22: =LN(AB22) -> -18.42068074 | AI22: =LnPhiL_i_Tci_Pci_wi_kijm_lijm_T_P_xyi(2,$F$8:$F$9,$G$8:$G$9,$H$8:$H$9,$O$8:$P$9,$S$8:$T$9,$AC$18,$AC$19*1000000,AA22:AB22) -> -0.03923480396 | AJ22: =LnPhiL_i_Tci_Pci_wi_kijm_lijm_T_P_xyi(2,$F$8:$F$9,$G$8:$G$9,$H$8:$H$9,$O$8:$P$9,$S$8:$T$9,$AC$18,$AC$19*1000000,$AG$17:$AG$18) -> -1.438986699 | AK22: =AA22*(AM22+AL22-AN22)+AB22*(AP22+AO22-AQ22) -> -1.912148315e-07 | AL22: =LN(AA22) -> -1.00000001e-08 | AM22: =LnPhiV_i_Tci_Pci_wi_kijm_lijm_T_P_xyi(1,$F$8:$F$9,$G$8:$G$9,$H$8:$H$9,$O$8:$P$9,$S$8:$T$9,$AC$18,$AC$19*1000000,AA22:AB22) -> -0.003794104548 | AN22: =LnPhiV_i_Tci_Pci_wi_kijm_lijm_T_P_xyi(1,$F$8:$F$9,$G$8:$G$9,$H$8:$H$9,$O$8:$P$9,$S$8:$T$9,$AC$18,$AC$19*1000000,$AG$14:$AG$15) -> -0.003794104548 | AO22: =LN(AB22) -> -18.42068074 | AP22: =LnPhiV_i_Tci_Pci_wi_kijm_lijm_T_P_xyi(2,$F$8:$F$9,$G$8:$G$9,$H$8:$H$9,$O$8:$P$9,$S$8:$T$9,$AC$18,$AC$19*1000000,AA22:AB22) -> -0.03923480396 | AQ22: =LnPhiV_i_Tci_Pci_wi_kijm_lijm_T_P_xyi(2,$F$8:$F$9,$G$8:$G$9,$H$8:$H$9,$O$8:$P$9,$S$8:$T$9,$AC$18,$AC$19*1000000,$AG$17:$AG$18) -> -0.3384323891
D23: Equilibrium function, F1 (component 1): | E23: 1e-06 | G23: 2.247198694 | H23: 0.8677955971 | I23: 0.1322044029 | J23: 1952667.465 | K23: 237905.8901 | L23: 28.40585815 | M23: 0.04731986569 | N23: 0.9526801343 | O23: 1952667.759 | P23: 237905.6555 | Q23: 776.7841377 | R23: 18.33892773 | S23: 0.1387710294 | T23: 0.007567019807 | U23: 7 | AA23: =(1-AB23) -> 0.9994 | AB23: 0.0006 | AC23: 1 | AD23: =AA23*(AF23+AE23-AG23)+AB23*(AI23+AH23-AJ23) -> -0.004211204933 | AE23: -0.000600180072 | AF23: =LnPhiL_i_Tci_Pci_wi_kijm_lijm_T_P_xyi(1,$F$8:$F$9,$G$8:$G$9,$H$8:$H$9,$O$8:$P$9,$S$8:$T$9,$AC$18,$AC$19*1000000,AA23:AB23) -> -0.00379401698 | AG23: =LnPhiL_i_Tci_Pci_wi_kijm_lijm_T_P_xyi(1,$F$8:$F$9,$G$8:$G$9,$H$8:$H$9,$O$8:$P$9,$S$8:$T$9,$AC$18,$AC$19*1000000,$AG$14:$AG$15) -> -0.003794104548 | AH23: -7.418580903 | AI23: =LnPhiL_i_Tci_Pci_wi_kijm_lijm_T_P_xyi(2,$F$8:$F$9,$G$8:$G$9,$H$8:$H$9,$O$8:$P$9,$S$8:$T$9,$AC$18,$AC$19*1000000,AA23:AB23) -> -0.03952660414 | AJ23: =LnPhiL_i_Tci_Pci_wi_kijm_lijm_T_P_xyi(2,$F$8:$F$9,$G$8:$G$9,$H$8:$H$9,$O$8:$P$9,$S$8:$T$9,$AC$18,$AC$19*1000000,$AG$17:$AG$18) -> -1.438986699 | AK23: =AA23*(AM23+AL23-AN23)+AB23*(AP23+AO23-AQ23) -> -0.004871537519 | AL23: =LN(AA23) -> -0.000600180072 | AM23: -0.00379401698 | AN23: -0.003794104548 | AO23: =LN(AB23) -> -7.418580903 | AP23: -0.03952660414 | AQ23: -0.3384323891
D24: Equilibrium function, F2 (component 2): | E24: 1e-06 | G24: 2.747198694 | H24: 0.8882678634 | I24: 0.1117321366 | J24: 2436018.039 | K24: 240022.3937 | L24: 33.40624891 | M24: 0.05845112307 | N24: 0.9415488769 | O24: 2436018.341 | P24: 240022.1571 | Q24: 776.7577129 | R24: 15.19676298 | S24: 0.1186684402 | T24: 0.007808797197 | U24: 7 | AA24: 0.9993 | AB24: 0.0007 | AC24: 1 | AD24: -0.004805148958 | AE24: -0.0007002451144 | AF24: -0.003793985358 | AG24: -0.003794104548 | AH24: -7.264430223 | AI24: -0.03957522186 | AJ24: -1.438986699 | AK24: -0.005575536975 | AL24: -0.0007002451144 | AM24: -0.003793985358 | AN24: -0.003794104548 | AO24: -7.264430223 | AP24: -0.03957522186 | AQ24: -0.3384323891
G25: 3.247198694 | H25: 0.9023876521 | I25: 0.09761234795 | J25: 2917548.3 | K25: 242181.3988 | L25: 38.42900384 | M25: 0.06932929185 | N25: 0.9306707082 | O25: 2917548.613 | P25: 242181.1586 | Q25: 776.7321476 | R25: 13.01596523 | S25: 0.1048838726 | T25: 0.008058094095 | U25: 7 | AA25: 0.9992 | AB25: 0.0008 | AC25: 1 | AD25: -0.005384753135 | AE25: -0.0008003201708 | AF25: -0.003793948871 | AG25: -0.003794104548 | AH25: -7.13089883 | AI25: -0.03962383489 | AJ25: -1.438986699 | AK25: -0.006265196583 | AL25: -0.0008003201708 | AM25: -0.003793948871 | AN25: -0.003794104548 | AO25: -7.13089883 | AP25: -0.03962383489 | AQ25: -0.3384323891
G26: 3.747198694 | H26: 0.9126854814 | I26: 0.08731451863 | J26: 3397306.682 | K26: 244383.0265 | L26: 43.47335681 | M26: 0.07996571678 | N26: 0.9200342832 | O26: 3397306.73 | P26: 244382.9905 | Q26: 776.7077662 | R26: 11.41345964 | S26: 0.09490354894 | T26: 0.008315055374 | U26: 8 | AA26: 0.9991 | AB26: 0.0009 | AC26: 1 | AD26: -0.005951819411 | AE26: -0.0009004052432 | AF26: -0.003793907519 | AG26: -0.003794104548 | AH26: -7.013115795 | AI26: -0.03967244321 | AJ26: -1.438986699 | AK26: -0.00694231829 | AL26: -0.0009004052432 | AM26: -0.003793907519 | AN26: -0.003794104548 | AO26: -7.013115795 | AP26: -0.03967244321 | AQ26: -0.3384323891
G27: 4.247198694 | H27: 0.9205046853 | I27: 0.07949531472 | J27: 3875340.542 | K27: 246628.0447 | L27: 48.53854749 | M27: 0.09037091337 | N27: 0.9096290866 | O27: 3875340.594 | P27: 246628.0064 | Q27: 776.6848719 | R27: 10.1858513 | S27: 0.08739310988 | T27: 0.0085798533 | U27: 8 | AA27: 0.999 | AB27: 0.001 | AC27: 1 | AD27: -0.006507746457 | AE27: -0.001000500334 | AF27: -0.003793861301 | AG27: -0.003794104548 | AH27: -6.907755279 | AI27: -0.03972104684 | AJ27: -1.438986699 | AK27: -0.007608300766 | AL27: -0.001000500334 | AM27: -0.003793861301 | AN27: -0.003794104548 | AO27: -6.907755279 | AP27: -0.03972104684 | AQ27: -0.3384323891
G28: 4.747198694 | H28: 0.9266248366 | I28: 0.07337516336 | J28: 4351697.788 | K28: 248916.6226 | L28: 53.62377087 | M28: 0.100554651 | N28: 0.899445349 | O28: 4351697.845 | P28: 248916.5816 | Q28: 776.6637468 | R28: 9.215136516 | S28: 0.08157823424 | T28: 0.008852634369 | U28: 8 | AA28: 0.9989 | AB28: 0.0011 | AC28: 1 | AD28: -0.007053651623 | AE28: -0.001100605444 | AF28: -0.003793810219 | AG28: -0.003794104548 | AH28: -6.812445099 | AI28: -0.03976964577 | AJ28: -1.438986699 | AK28: -0.008264261364 | AL28: -0.001100605444 | AM28: -0.003793810219 | AN28: -0.003794104548 | AO28: -6.812445099 | AP28: -0.03976964577 | AQ28: -0.3384323891
G29: 5.247198694 | H29: 0.9315292554 | I29: 0.0684707446 | J29: 4826425.788 | K29: 251249.1562 | L29: 58.72821318 | M29: 0.1105260243 | N29: 0.8894739757 | O29: 4826425.85 | P29: 251249.1122 | Q29: 776.6446575 | R29: 8.42814406 | S29: 0.0769789184 | T29: 0.009133555129 | U29: 8 | AA29: 0.9988 | AB29: 0.0012 | AC29: 1 | AD29: -0.007590448171 | AE29: -0.001200720577 | AF29: -0.003793754271 | AG29: -0.003794104548 | AH29: -6.725433722 | AI29: -0.03981824001 | AJ29: -1.438986699 | AK29: -0.008911113343 | AL29: -0.001200720577 | AM29: -0.003793754271 | AN29: -0.003794104548 | AO29: -6.725433722 | AP29: -0.03981824001 | AQ29: -0.3384323891
G30: 5.747198694 | H30: 0.9355335621 | I30: 0.06446643793 | J30: 5299571.624 | K30: 253626.0615 | L30: 63.85104363 | M30: 0.1202935178 | N30: 0.8797064822 | O30: 5299571.692 | P30: 253626.0143 | Q30: 776.6278522 | R30: 7.777090395 | S30: 0.07328175845 | T30: 0.009422773135 | U30: 8 | AA30: 0.9987 | AB30: 0.0013 | AC30: 1 | AD30: -0.008118896567 | AE30: -0.001300845733 | AF30: -0.003793693458 | AG30: -0.003794104548 | AH30: -6.645391015 | AI30: -0.03986682955 | AJ30: -1.438986699 | AK30: -0.009549617169 | AL30: -0.001300845733 | AM30: -0.003793693458 | AN30: -0.003794104548 | AO30: -6.645391015 | AP30: -0.03986682955 | AQ30: -0.3384323891
G31: 6.247198694 | H31: 0.9388526078 | I31: 0.06114739224 | J31: 5771182.096 | K31: 256047.7735 | L31: 68.99141624 | M31: 0.1298650618 | N31: 0.8701349382 | O31: 5771182.171 | P31: 256047.7227 | Q31: 776.6135646 | R31: 7.229447205 | S31: 0.07027345939 | T31: 0.009720447137 | U31: 8 | AA31: 0.9986 | AB31: 0.0014 | AC31: 1 | AD31: -0.008639639903 | AE31: -0.001400980916 | AF31: -0.00379362778 | AG31: -0.003794104548 | AH31: -6.571283042 | AI31: -0.0399154144 | AJ31: -1.438986699 | AK31: -0.01018041594 | AL31: -0.001400980916 | AM31: -0.00379362778 | AN31: -0.003794104548 | AO31: -6.571283042 | AP31: -0.0399154144 | AQ31: -0.3384323891
G32: 6.747198694 | H32: 0.9416377212 | I32: 0.05836227879 | J32: 6241303.706 | K32: 258514.7457 | L32: 74.14847047 | M32: 0.1392480819 | N32: 0.8607519181 | O32: 6241303.788 | P32: 258514.6911 | Q32: 776.602014 | R32: 6.762302994 | S32: 0.0678038324 | T32: 0.01002673682 | U32: 8 | AA32: 0.9985 | AB32: 0.0015 | AC32: 1 | AD32: -0.009153229146 | AE32: -0.001501126126 | AF32: -0.003793557236 | AG32: -0.003794104548 | AH32: -6.502290171 | AI32: -0.03996399455 | AJ32: -1.438986699 | AK32: -0.01080406061 | AL32: -0.001501126126 | AM32: -0.003793557236 | AN32: -0.003794104548 | AO32: -6.502290171 | AP32: -0.03996399455 | AQ32: -0.3384323891
G33: 7.247198694 | H33: 0.9439985716 | I33: 0.05600142839 | J33: 6709982.655 | K33: 261027.4495 | L33: 79.32133229 | M33: 0.1484495438 | N33: 0.8515504562 | O33: 6709982.745 | P33: 261027.3907 | Q33: 776.5934068 | R33: 6.359053371 | S33: 0.06576407538 | T33: 0.01034180271 | U33: 8 | AA33: 0.9984 | AB33: 0.0016 | AC33: 1 | AD33: -0.009660141626 | AE33: -0.001601281367 | AF33: -0.003793481828 | AG33: -0.003794104548 | AH33: -6.43775165 | AI33: -0.04001257001 | AJ33: -1.438986699 | AK33: -0.01142102852 | AL33: -0.001601281367 | AM33: -0.003793481828 | AN33: -0.003794104548 | AO33: -6.43775165 | AP33: -0.04001257001 | AQ33: -0.3384323891
G34: 7.747198694 | H34: 0.9460165836 | I34: 0.05398341637 | J34: 7177264.839 | K34: 263586.3732 | L34: 84.50911528 | M34: 0.1574759919 | N34: 0.8425240081 | O34: 7177264.937 | P34: 263586.3101 | Q34: 776.5879367 | R34: 6.007370219 | S34: 0.0640734458 | T34: 0.01066580608 | U34: 8 | AA34: 0.9983 | AB34: 0.0017 | AC34: 1 | AD34: -0.01016079488 | AE34: -0.00170144664 | AF34: -0.003793401553 | AG34: -0.003794104548 | AH34: -6.377127028 | AI34: -0.04006114078 | AJ34: -1.438986699 | AK34: -0.01203173721 | AL34: -0.00170144664 | AM34: -0.003793401553 | AN34: -0.003794104548 | AO34: -6.377127028 | AP34: -0.04006114078 | AQ34: -0.3384323891
G35: 8.247198694 | H35: 0.9477534825 | I35: 0.05224651751 | J35: 7643195.838 | K35: 266192.0223 | L35: 89.71092168 | M35: 0.166333585 | N35: 0.833666415 | O35: 7643195.945 | P35: 266191.9544 | Q35: 776.5857865 | R35: 5.697908106 | S35: 0.06267077163 | T35: 0.0109989088 | U35: 8 | AA35: 0.9982 | AB35: 0.0018 | AC35: 1 | AD35: -0.01065555723 | AE35: -0.001801621947 | AF35: -0.003793316414 | AG35: -0.003794104548 | AH35: -6.319968614 | AI35: -0.04010970686 | AJ35: -1.438986699 | AK35: -0.01263655499 | AL35: -0.001801621947 | AM35: -0.003793316414 | AN35: -0.003794104548 | AO35: -6.319968614 | AP35: -0.04010970686 | AQ35: -0.3384323891
G36: 8.747198694 | H36: 0.9492569138 | I36: 0.05074308616 | J36: 8107820.915 | K36: 268844.9183 | L36: 94.92584347 | M36: 0.1750281278 | N36: 0.8249718722 | O36: 8107821.032 | P36: 268844.8455 | Q36: 776.5871277 | R36: 5.423453507 | S36: 0.06150886821 | T36: 0.01134127325 | U36: 8 | AA36: 0.998 | AB36: 0.002 | AC36: 1 | AD36: -0.01162868405 | AE36: -0.002002002671 | AF36: -0.003793131538 | AG36: -0.003794104548 | AH36: -6.214608098 | AI36: -0.04020682493 | AJ36: -1.438986699 | AK36: -0.01382979267 | AL36: -0.002002002671 | AM36: -0.003793131538 | AN36: -0.003794104548 | AO36: -6.214608098 | AP36: -0.04020682493 | AQ36: -0.3384323891
G37: 9.247198694 | H37: 0.9505642438 | I37: 0.04943575622 | J37: 8571185.006 | K37: 271545.599 | L37: 100.1529635 | M37: 0.1835650988 | N37: 0.8164349012 | O37: 8571185.133 | P37: 271545.5209 | Q37: 776.592122 | R37: 5.178349533 | S37: 0.06055076301 | T37: 0.01169306217 | U37: 8 | AA37: 0.997 | AB37: 0.003 | AC37: 1 | AD37: -0.01622585801 | AE37: -0.00300450902 | AF37: -0.003791915223 | AG37: -0.003794104548 | AH37: -5.80914299 | AI37: -0.04069213403 | AJ37: -1.438986699 | AK37: -0.01952752094 | AL37: -0.00300450902 | AM37: -0.003791915223 | AN37: -0.003794104548 | AO37: -5.80914299 | AP37: -0.04069213403 | AQ37: -0.3384323891
G38: 9.747198694 | H38: 0.9517051914 | I38: 0.04829480864 | J38: 9033332.715 | K38: 274294.6176 | L38: 105.3913566 | M38: 0.1919496761 | N38: 0.8080503239 | O38: 9033332.853 | P38: 274294.5342 | Q38: 776.6009215 | R38: 4.958097408 | S38: 0.05976708035 | T38: 0.01205443852 | U38: 8 | AA38: 0.996 | AB38: 0.004 | AC38: 1 | AD38: -0.02048271743 | AE38: -0.004008021398 | AF38: -0.003790212319 | AG38: -0.003794104548 | AH38: -5.521460918 | AI38: -0.04117697477 | AJ38: -1.438986699 | AK38: -0.02488493467 | AL38: -0.004008021398 | AM38: -0.003790212319 | AN38: -0.003794104548 | AO38: -5.521460918 | AP38: -0.04117697477 | AQ38: -0.3384323891
G39: 10.24719869 | H39: 0.9527036919 | I39: 0.04729630809 | J39: 9494308.311 | K39: 277092.5429 | L39: 110.6400901 | M39: 0.2001867601 | N39: 0.7998132399 | O39: 9494308.459 | P39: 277092.454 | Q39: 776.6136691 | R39: 4.759074434 | S39: 0.05913418999 | T39: 0.01242556527 | U39: 8 | AA39: 0.995 | AB39: 0.005 | AC39: 1 | AD39: -0.02448638784 | AE39: -0.005012541824 | AF39: -0.003788022786 | AG39: -0.003794104548 | AH39: -5.298317367 | AI39: -0.04166134781 | AJ39: -1.438986699 | AK39: -0.02998915939 | AL39: -0.005012541824 | AM39: -0.003788022786 | AN39: -0.003794104548 | AO39: -5.298317367 | AP39: -0.04166134781 | AQ39: -0.3384323891
G40: 10.74719869 | H40: 0.9535792418 | I40: 0.04642075821 | J40: 9954155.717 | K40: 279939.9589 | L40: 115.8982243 | M40: 0.2082809946 | N40: 0.7917190054 | O40: 9954155.875 | P40: 279939.8644 | Q40: 776.6304993 | R40: 4.578330557 | S40: 0.05863287086 | T40: 0.01280660497 | U40: 8 | AA40: 0.994 | AB40: 0.006 | AC40: 1 | AD40: -0.02828818466 | AE40: -0.006018072326 | AF40: -0.003785346582 | AG40: -0.003794104548 | AH40: -5.11599581 | AI40: -0.04214525381 | AJ40: -1.438986699 | AK40: -0.03489151052 | AL40: -0.006018072326 | AM40: -0.003785346582 | AN40: -0.003794104548 | AO40: -5.11599581 | AP40: -0.04214525381 | AQ40: -0.3384323891
G41: 11.24719869 | H41: 0.9543478652 | I41: 0.04565213484 | J41: 10412918.51 | K41: 282837.4643 | L41: 121.1648308 | M41: 0.2162367853 | N41: 0.7837632147 | O41: 10412918.68 | P41: 282837.3642 | Q41: 776.6515384 | R41: 4.413439016 | S41: 0.05824735582 | T41: 0.01319772531 | U41: 8 | AA41: 0.993931 | AB41: 0.006069 | AC41: 1 | AD41: -0.0285439952 | AE41: -0.006087491234 | AF41: -0.003785143974 | AG41: -0.003794104548 | AH41: -5.104561432 | AI41: -0.04217862611 | AJ41: -1.438986699 | AK41: -0.0352232593 | AL41: -0.006087491234 | AM41: -0.003785143974 | AN41: -0.003794104548 | AO41: -5.104561432 | AP41: -0.04217862611 | AQ41: -0.3384323891
G42: 11.74719869 | H42: 0.9550228992 | I42: 0.04497710076 | J42: 10870639.91 | K42: 285785.673 | L42: 126.4389484 | M42: 0.2240583174 | N42: 0.7759416826 | O42: 10870640.08 | P42: 285785.5675 | Q42: 776.6769049 | R42: 4.262385393 | S42: 0.0579645375 | T42: 0.01359908412 | U42: 8 | AA42: 0.992 | AB42: 0.008 | AC42: 1 | AD42: -0.03541197797 | AE42: -0.008032171697 | AF42: -0.003778533986 | AG42: -0.003794104548 | AH42: -4.828313737 | AI42: -0.0431116672 | AJ42: -1.438986699 | AK42: -0.04421641245 | AL42: -0.008032171697 | AM42: -0.003778533986 | AN42: -0.003794104548 | AO42: -4.828313737 | AP42: -0.0431116672 | AQ42: -0.3384323891
G43: 12.24719869 | H43: 0.9556154905 | I43: 0.04438450946 | J43: 11327362.79 | K43: 288785.2133 | L43: 131.7196356 | M43: 0.2317495704 | N43: 0.7682504296 | O43: 11327362.96 | P43: 288785.1025 | Q43: 776.7067102 | R43: 4.123483331 | S43: 0.05777349124 | T43: 0.01401084632 | U43: 8 | AA43: 0.991 | AB43: 0.009 | AC43: 1 | AD43: -0.03877609187 | AE43: -0.009040744652 | AF43: -0.0037743975 | AG43: -0.003794104548 | AH43: -4.710530702 | AI43: -0.04359417589 | AJ43: -1.438986699 | AK43: -0.04868108066 | AL43: -0.009040744652 | AM43: -0.0037743975 | AN43: -0.003794104548 | AO43: -4.710530702 | AP43: -0.04359417589 | AQ43: -0.3384323891
G44: 12.74719869 | H44: 0.956135051 | I44: 0.04386494901 | J44: 11783129.63 | K44: 291836.7281 | L44: 137.0059445 | M44: 0.239314333 | N44: 0.760685667 | O44: 11783129.8 | P44: 291836.6123 | Q44: 776.7410582 | R44: 3.995310431 | S44: 0.05766501318 | T44: 0.01443317464 | U44: 8 | AA44: 0.99 | AB44: 0.01 | AC44: 1 | AD44: -0.04202834248 | AE44: -0.01005033585 | AF44: -0.003769774156 | AG44: -0.003794104548 | AH44: -4.605170186 | AI44: -0.0440762201 | AJ44: -1.438986699 | AK44: -0.05303388558 | AL44: -0.01005033585 | AM44: -0.003769774156 | AN44: -0.003794104548 | AO44: -4.605170186 | AP44: -0.0440762201 | AQ44: -0.3384323891
G45: 13.24719869 | H45: 0.9565895796 | I45: 0.04341042043 | J45: 12237982.58 | K45: 294940.8747 | L45: 142.2969274 | M45: 0.2467562156 | N45: 0.7532437844 | O45: 12237982.74 | P45: 294940.7546 | Q45: 776.7800466 | R45: 3.876658495 | S45: 0.05763130255 | T45: 0.01486623148 | U45: 8 | AA45: 0.989 | AB45: 0.011 | AC45: 1 | AD45: -0.04517990233 | AE45: -0.01106094736 | AF45: -0.003764663903 | AG45: -0.003794104548 | AH45: -4.509860006 | AI45: -0.04455780046 | AJ45: -1.438986699 | AK45: -0.05728599973 | AL45: -0.01106094736 | AM45: -0.003764663903 | AN45: -0.003794104548 | AO45: -4.509860006 | AP45: -0.04455780046 | AQ45: -0.3384323891
G46: 13.74719869 | H46: 0.9569859191 | I46: 0.04301408094 | J46: 12691963.39 | K46: 298098.3249 | L46: 147.5916382 | M46: 0.2540786625 | N46: 0.7459213375 | O46: 12691963.52 | P46: 298098.2013 | Q46: 776.8237663 | R46: 3.766494635 | S46: 0.05766570652 | T46: 0.01531017886 | U46: 8 | AA46: 0.98 | AB46: 0.02 | AC46: 1 | AD46: -0.070141398 | AE46: -0.02020270732 | AF46: -0.00369675108 | AG46: -0.003794104548 | AH46: -3.912023005 | AI46: -0.0488712548 | AJ46: -1.438986699 | AK46: -0.09215248419 | AL46: -0.02020270732 | AM46: -0.00369675108 | AN46: -0.003794104548 | AO46: -3.912023005 | AP46: -0.0488712548 | AQ46: -0.3384323891
G47: 14.24719869 | H47: 0.9573299588 | I47: 0.04267004122 | J47: 13145113.44 | K47: 301309.7648 | L47: 152.8891335 | M47: 0.2612849623 | N47: 0.7387150377 | O47: 13145113.52 | P47: 301309.6387 | Q47: 776.8723021 | R47: 3.663930562 | S47: 0.05776251875 | T47: 0.01576517834 | U47: 8 | AA47: 0.9807558414 | AB47: 0.01924415863 | AC47: 1 | AD47: -0.06823581428 | AE47: -0.01943173788 | AF47: -0.00370397287 | AG47: -0.003794104548 | AH47: -3.950547712 | AI47: -0.0485104326 | AJ47: -1.438986699 | AK47: -0.08941505599 | AL47: -0.01943173788 | AM47: -0.00370397287 | AN47: -0.003794104548 | AO47: -3.950547712 | AP47: -0.0485104326 | AQ47: -0.3384323891
G48: 14.74719869 | H48: 0.9576267961 | I48: 0.04237320388 | J48: 13597473.72 | K48: 304575.8949 | L48: 158.1884736 | M48: 0.2683782584 | N48: 0.7316217416 | O48: 13597473.74 | P48: 304575.7676 | Q48: 776.925733 | R48: 3.568198117 | S48: 0.05791681885 | T48: 0.01623139101 | U48: 8 | AA48: 0.96 | AB48: 0.04 | AC48: 1 | AD48: -0.112343504 | AE48: -0.04082199452 | AF48: -0.003404352457 | AG48: -0.003794104548 | AH48: -3.218875825 | AI48: -0.05832465676 | AJ48: -1.438986699 | AK48: -0.1563656764 | AL48: -0.04082199452 | AM48: -0.003404352457 | AN48: -0.003794104548 | AO48: -3.218875825 | AP48: -0.05832465676 | AQ48: -0.3384323891
G49: 15.24719869 | H49: 0.9578808663 | I49: 0.04211913369 | J49: 14049084.85 | K49: 307897.43 | L49: 163.4887239 | M49: 0.2753615577 | N49: 0.7246384423 | O49: 14049084.76 | P49: 307897.3031 | Q49: 776.9841324 | R49: 3.478629604 | S49: 0.05812434344 | T49: 0.0167089774 | U49: 8 | AA49: 0.955 | AB49: 0.045 | AC49: 1 | AD49: -0.1210252286 | AE49: -0.0460439385 | AF49: -0.003300695563 | AG49: -0.003794104548 | AH49: -3.101092789 | AI49: -0.06065997444 | AJ49: -1.438986699 | AK49: -0.1705501725 | AL49: -0.0460439385 | AM49: -0.003300695563 | AN49: -0.003794104548 | AO49: -3.101092789 | AP49: -0.06065997444 | AQ49: -0.3384323891
G50: 15.74719869 | H50: 0.9580960475 | I50: 0.04190395253 | J50: 14499987.05 | K50: 311275.099 | L50: 168.7889559 | M50: 0.2822377394 | N50: 0.7177622606 | O50: 14499986.82 | P50: 311274.9746 | Q50: 777.047568 | R50: 3.39464187 | S50: 0.05838138174 | T50: 0.01719809746 | U50: 8 | AA50: 0.95 | AB50: 0.05 | AC50: 1 | AD50: -0.1291362685 | AE50: -0.05129329439 | AF50: -0.003184787499 | AG50: -0.003794104548 | AH50: -2.995732274 | AI50: -0.06298422537 | AJ50: -1.438986699 | AK50: -0.184163984 | AL50: -0.05129329439 | AM50: -0.003184787499 | AN50: -0.003794104548 | AO50: -2.995732274 | AP50: -0.06298422537 | AQ50: -0.3384323891
G51: 16.24719869 | H51: 0.9582757463 | I51: 0.04172425372 | J51: 14950220.14 | K51: 314709.6455 | L51: 174.088248 | M51: 0.2890095626 | N51: 0.7109904374 | O51: 14950219.72 | P51: 314709.5262 | Q51: 777.1161022 | R51: 3.31572332 | S51: 0.05868469043 | T51: 0.01769891055 | U51: 8 | AA51: 0.94 | AB51: 0.06 | AC51: 1 | AD51: -0.1438590327 | AE51: -0.06187540372 | AF51: -0.00291615071 | AG51: -0.003794104548 | AH51: -2.813410717 | AI51: -0.06759981139 | AJ51: -1.438986699 | AK51: -0.2098922912 | AL51: -0.06187540372 | AM51: -0.00291615071 | AN51: -0.003794104548 | AO51: -2.813410717 | AP51: -0.06759981139 | AQ51: -0.3384323891
G52: 16.74719869 | H52: 0.9584229683 | I52: 0.04157703169 | J52: 15399823.57 | K52: 318201.8273 | L52: 179.3856872 | M52: 0.2956796734 | N52: 0.7043203266 | O52: 15399822.88 | P52: 318201.716 | Q52: 777.1897928 | R52: 3.241423251 | S52: 0.05903142379 | T52: 0.01821157535 | U52: 8 | AA52: 0.93 | AB52: 0.07 | AC52: 1 | AD52: -0.1568498127 | AE52: -0.07257069283 | AF52: -0.002598294396 | AG52: -0.003794104548 | AH52: -2.659260037 | AI52: -0.07217197337 | AJ52: -1.438986699 | AK52: -0.2338886144 | AL52: -0.07257069283 | AM52: -0.002598294396 | AN52: -0.003794104548 | AO52: -2.659260037 | AP52: -0.07217197337 | AQ52: -0.3384323891
G53: 17.24719869 | H53: 0.9585403266 | I53: 0.04145967336 | J53: 15848835.78 | K53: 321752.6899 | L53: 184.6803951 | M53: 0.3022504705 | N53: 0.6977495295 | O53: 15848829.2 | P53: 321752.371 | Q53: 777.2687359 | R53: 3.171344366 | S53: 0.05941913482 | T53: 0.0187362607 | U53: 7 | AA53: 0.915 | AB53: 0.085 | AC53: 1 | AD53: -0.1735960706 | AE53: -0.08883121371 | AF53: -0.002028846991 | AG53: -0.003794104548 | AH53: -2.465104022 | AI53: -0.07894997875 | AJ53: -1.438986699 | AK53: -0.2671431869 | AL53: -0.08883121371 | AM53: -0.002028846991 | AN53: -0.003794104548 | AO53: -2.465104022 | AP53: -0.07894997875 | AQ53: -0.3384323891
G54: 17.74719869 | H54: 0.9586302948 | I54: 0.04136970519 | J54: 16297296.65 | K54: 325362.4373 | L54: 189.9714235 | M54: 0.3087246368 | N54: 0.6912753632 | O54: 16297287.88 | P54: 325362.1863 | Q54: 777.3529053 | R54: 3.105130529 | S54: 0.05984547894 | T54: 0.01927309605 | U54: 7 | AA54: 0.91 | AB54: 0.09 | AC54: =SUM(AA54:AB54) -> 1 | AD54: -0.1785342652 | AE54: =LN(AA54) -> -0.09431067947 | AF54: -0.001814224094 | AG54: =LnPhiL_i_Tci_Pci_wi_kijm_lijm_T_P_xyi(1,$F$8:$F$9,$G$8:$G$9,$H$8:$H$9,$O$8:$P$9,$S$8:$T$9,$AC$18,$AC$19*1000000,$AG$14:$AG$15) -> -0.003794104548 | AH54: =LN(AB54) -> -2.407945609 | AI54: =LnPhiL_i_Tci_Pci_wi_kijm_lijm_T_P_xyi(2,$F$8:$F$9,$G$8:$G$9,$H$8:$H$9,$O$8:$P$9,$S$8:$T$9,$AC$18,$AC$19*1000000,AA54:AB54) -> -0.0811881797 | AJ54: =LnPhiL_i_Tci_Pci_wi_kijm_lijm_T_P_xyi(2,$F$8:$F$9,$G$8:$G$9,$H$8:$H$9,$O$8:$P$9,$S$8:$T$9,$AC$18,$AC$19*1000000,$AG$17:$AG$18) -> -1.438986699 | AK54: =AA54*(AM54+AL54-AN54)+AB54*(AP54+AO54-AQ54) -> -0.277584153 | AL54: -0.09431067947 | AM54: =LnPhiV_i_Tci_Pci_wi_kijm_lijm_T_P_xyi(1,$F$8:$F$9,$G$8:$G$9,$H$8:$H$9,$O$8:$P$9,$S$8:$T$9,$AC$18,$AC$19*1000000,AA54:AB54) -> -0.001814224094 | AN54: =LnPhiV_i_Tci_Pci_wi_kijm_lijm_T_P_xyi(1,$F$8:$F$9,$G$8:$G$9,$H$8:$H$9,$O$8:$P$9,$S$8:$T$9,$AC$18,$AC$19*1000000,$AG$14:$AG$15) -> -0.003794104548 | AO54: -2.407945609 | AP54: =LnPhiV_i_Tci_Pci_wi_kijm_lijm_T_P_xyi(2,$F$8:$F$9,$G$8:$G$9,$H$8:$H$9,$O$8:$P$9,$S$8:$T$9,$AC$18,$AC$19*1000000,AA54:AB54) -> -0.0811881797 | AQ54: =LnPhiV_i_Tci_Pci_wi_kijm_lijm_T_P_xyi(2,$F$8:$F$9,$G$8:$G$9,$H$8:$H$9,$O$8:$P$9,$S$8:$T$9,$AC$18,$AC$19*1000000,$AG$17:$AG$18) -> -0.3384323891
G55: 18.24719869 | H55: 0.9586949312 | I55: 0.04130506882 | J55: 16745243.77 | K55: 329032.1728 | L55: 195.2579175 | M55: 0.3151044064 | N55: 0.6848955936 | O55: 16745232.32 | P55: 329032.0062 | Q55: 777.442379 | R55: 3.04246755 | S55: 0.06030856266 | T55: 0.01982225338 | U55: 7 | AA55: 0.905 | AB55: 0.095 | AC55: 1 | AD55: -0.1831793353 | AE55: -0.09982033528 | AF55: -0.001587153194 | AG55: -0.003794104548 | AH55: -2.353878387 | AI55: -0.08341592019 | AJ55: -1.438986699 | AK55: -0.2877319947 | AL55: -0.09982033528 | AM55: -0.001587153194 | AN55: -0.003794104548 | AO55: -2.353878387 | AP55: -0.08341592019 | AQ55: -0.3384323891
G56: 18.74719869 | H56: 0.9587361287 | I56: 0.04126387135 | J56: 17192714.96 | K56: 332762.712 | L56: 200.5390062 | M56: 0.3213920331 | N56: 0.6786079669 | O56: 17192700.25 | P56: 332762.648 | Q56: 777.5371974 | R56: 2.983073723 | S56: 0.06080664148 | T56: 0.02038388827 | U56: 7 | AA56: 0.9 | AB56: 0.1 | AC56: 1 | AD56: -0.1875457807 | AE56: -0.1053605157 | AF56: -0.001347605506 | AG56: -0.003794104548 | AH56: -2.302585093 | AI56: -0.08563326279 | AJ56: -1.438986699 | AK56: -0.2976012116 | AL56: -0.1053605157 | AM56: -0.001347605506 | AN56: -0.003794104548 | AO56: -2.302585093 | AP56: -0.08563326279 | AQ56: -0.3384323891
G57: 19.24719869 | H57: 0.9587556025 | I57: 0.04124439754 | J57: 17639747.83 | K57: 336554.8048 | L57: 205.8138235 | M57: 0.3275900372 | N57: 0.6724099628 | O57: 17639744.04 | P57: 336554.8046 | Q57: 777.6372837 | R57: 2.926693408 | S57: 0.06133817139 | T57: 0.02095818141 | U57: 8 | AA57: 0.895 | AB57: 0.105 | AC57: 1 | AD57: -0.1916466337 | AE57: -0.1109315607 | AF57: -0.001095550824 | AG57: -0.003794104548 | AH57: -2.253794929 | AI57: -0.08784026916 | AJ57: -1.438986699 | AK57: -0.3072048362 | AL57: -0.1109315607 | AM57: -0.001095550824 | AN57: -0.003794104548 | AO57: -2.253794929 | AP57: -0.08784026916 | AQ57: -0.3384323891
G58: 19.74719869 | H58: 0.9587548448 | I58: 0.04124515517 | J58: 18086378.87 | K58: 340409.527 | L58: 211.0815489 | M58: 0.3336999052 | N58: 0.6663000948 | O58: 18086373.91 | P58: 340409.5694 | Q58: 777.742851 | R58: 2.873104936 | S58: 0.06190176993 | T58: 0.02154525202 | U58: 8 | AA58: 0.89 | AB58: 0.11 | AC58: 1 | AD58: -0.1954936692 | AE58: -0.1165338163 | AF58: -0.000830957507 | AG58: -0.003794104548 | AH58: -2.207274913 | AI58: -0.09003700007 | AJ58: -1.438986699 | AK58: -0.3165546433 | AL58: -0.1165338163 | AM58: -0.000830957507 | AN58: -0.003794104548 | AO58: -2.207274913 | AP58: -0.09003700007 | AQ58: -0.3384323891
G59: 20.24719869 | H59: 0.958735267 | I59: 0.04126473301 | J59: 18532644.99 | K59: 344327.5983 | L59: 216.3413384 | M59: 0.3397239121 | N59: 0.6602760879 | O59: 18532638.6 | P59: 344327.6928 | Q59: 777.853861 | R59: 2.82210122 | S59: 0.06249617966 | T59: 0.0221452651 | U59: 8 | AA59: 0.885 | AB59: 0.115 | AC59: 1 | AD59: -0.1990975761 | AE59: -0.122167634 | AF59: -0.0005537924642 | AG59: -0.003794104548 | AH59: -2.162823151 | AI59: -0.0922235154 | AJ59: -1.438986699 | AK59: -0.3256613217 | AL59: -0.122167634 | AM59: -0.0005537924642 | AN59: -0.003794104548 | AO59: -2.162823151 | AP59: -0.0922235154 | AQ59: -0.3384323891
G60: 20.74719869 | H60: 0.9586981256 | I60: 0.04130187439 | J60: 18978582.39 | K60: 348309.8946 | L60: 221.5923775 | M60: 0.3456640126 | N60: 0.6543359874 | O60: 18978574.25 | P60: 348310.0521 | Q60: 777.9703275 | R60: 2.773497069 | S60: 0.06312028558 | T60: 0.02275837472 | U60: 8 | AA60: 0.88 | AB60: 0.12 | AC60: 1 | AD60: -0.2024680989 | AE60: -0.1278333715 | AF60: -0.0002640211416 | AG60: -0.003794104548 | AH60: -2.120263536 | AI60: -0.09439987414 | AJ60: -1.438986699 | AK60: -0.3345346161 | AL60: -0.1278333715 | AM60: -0.0002640211416 | AN60: -0.003794104548 | AO60: -2.120263536 | AP60: -0.09439987414 | AQ60: -0.3384323891
G61: 21.24719869 | H61: 0.9586445631 | I61: 0.04135543686 | J61: 19424226.85 | K61: 352357.3072 | L61: 226.8338673 | M61: 0.3515220837 | N61: 0.6484779163 | O61: 19424216.58 | P61: 352357.54 | Q61: 778.0922701 | R61: 2.727124718 | S61: 0.06377308435 | T61: 0.02338473336 | U61: 8 | AA61: 0.8 | AB61: 0.2 | AC61: 1 | AD61: -0.2302501227 | AE61: -0.2231435513 | AF61: 0.006120898776 | AG61: -0.003794104548 | AH61: -1.609437912 | AI61: -0.127885208 | AJ61: -1.438986699 | AK61: -0.4503609846 | AL61: -0.2231435513 | AM61: 0.006120898776 | AN61: -0.003794104548 | AO61: -1.609437912 | AP61: -0.127885208 | AQ61: -0.3384323891
G62: 21.74719869 | H62: 0.9585756209 | I62: 0.04142437911 | J62: 19869613.72 | K62: 356470.7427 | L62: 232.0650251 | M62: 0.3572999381 | N62: 0.6427000619 | O62: 19869600.91 | P62: 356471.0649 | Q62: 778.2197053 | R62: 2.682831758 | S62: 0.0644536722 | T62: 0.02402449278 | U62: 8 | AA62: 0.78 | AB62: 0.22 | AC62: 1 | AD62: -0.2308329859 | AE62: -0.2484613593 | AF62: 0.008245620956 | AG62: -0.003794104548 | AH62: -1.514127733 | AI62: -0.1358776549 | AJ62: -1.438986699 | AK62: -0.472954934 | AL62: -0.2484613593 | AM62: 0.008245620956 | AN62: -0.003794104548 | AO62: -1.514127733 | AP62: -0.1358776549 | AQ62: -0.3384323891
G63: 22.24719869 | H63: 0.9584922188 | I63: 0.04150778117 | J63: 20314777.54 | K63: 360651.3023 | L63: 237.2851064 | M63: 0.3629995984 | N63: 0.6370004016 | O63: 20314773.48 | P63: 360651.436 | Q63: 778.3525533 | R63: 2.640477353 | S63: 0.06516131084 | T63: 0.02467785257 | U63: 9 | AA63: 0.76 | AB63: 0.24 | AC63: 1 | AD63: -0.2292853451 | AE63: -0.2744368457 | AF63: 0.01058962718 | AG63: -0.003794104548 | AH63: -1.427116356 | AI63: -0.1437244203 | AJ63: -1.438986699 | AK63: -0.4934183794 | AL63: -0.2744368457 | AM63: 0.01058962718 | AN63: -0.003794104548 | AO63: -1.427116356 | AP63: -0.1437244203 | AQ63: -0.3384323891
G64: 22.74719869 | H64: 0.958395282 | I64: 0.041604718 | J64: 20759753.58 | K64: 364899.6206 | L64: 242.4933275 | M64: 0.3686222737 | N64: 0.6313777263 | O64: 20759748.44 | P64: 364899.7971 | Q64: 778.4909888 | R64: 2.59993861 | S64: 0.06589513102 | T64: 0.02534487959 | U64: 9 | AA64: 0.74 | AB64: 0.26 | AC64: 1 | AD64: -0.2257473397 | AE64: -0.3011050928 | AF64: 0.01315771505 | AG64: -0.003794104548 | AH64: -1.347073648 | AI64: -0.1514281184 | AJ64: -1.438986699 | AK64: -0.5118914602 | AL64: -0.3011050928 | AM64: 0.01315771505 | AN64: -0.003794104548 | AO64: -1.347073648 | AP64: -0.1514281184 | AQ64: -0.3384323891
G65: 23.24719869 | H65: 0.9582855873 | I65: 0.04171441266 | J65: 21204575.67 | K65: 369216.7832 | L65: 247.6889728 | M65: 0.3741698245 | N65: 0.6258301755 | O65: 21204569.22 | P65: 369217.0108 | Q65: 778.634943 | R65: 2.561097995 | S65: 0.06665452434 | T65: 0.02602576101 | U65: 9 | AA65: 0.72 | AB65: 0.28 | AC65: 1 | AD65: -0.2203350559 | AE65: -0.328504067 | AF65: 0.01595522652 | AG65: -0.003794104548 | AH65: -1.272965676 | AI65: -0.1589911876 | AJ65: -1.438986699 | AK65: -0.5284902626 | AL65: -0.328504067 | AM65: 0.01595522652 | AN65: -0.003794104548 | AO65: -1.272965676 | AP65: -0.1589911876 | AQ65: -0.3384323891
G66: 23.74719869 | H66: 0.9581638711 | I66: 0.04183612892 | J66: 21649277.53 | K66: 373603.761 | L66: 252.8713293 | M66: 0.3796438373 | N66: 0.6203561627 | O66: 21649269.51 | P66: 373604.049 | Q66: 778.7844193 | R66: 2.5238494 | S66: 0.06743888661 | T66: 0.02672064609 | U66: 9 | AA66: 0.7 | AB66: 0.3 | AC66: 1 | AD66: -0.213145524 | AE66: -0.3566749439 | AF66: 0.01898809115 | AG66: -0.003794104548 | AH66: -1.203972804 | AI66: -0.166415895 | AJ66: -1.438986699 | AK66: -0.5433118168 | AL66: -0.3566749439 | AM66: 0.01898809115 | AN66: -0.003794104548 | AO66: -1.203972804 | AP66: -0.166415895 | AQ66: -0.3384323891
G67: 24.24719869 | H67: 0.9580308122 | I67: 0.04196918777 | J67: 22093892.48 | K67: 378061.541 | L67: 258.0397022 | M67: 0.385045848 | N67: 0.614954152 | O67: 22093882.59 | P67: 378061.9 | Q67: 778.939418 | R67: 2.488095424 | S67: 0.06824766957 | T67: 0.02742968333 | U67: 9 | AA67: 0.68 | AB67: 0.32 | AC67: 1 | AD67: -0.204260356 | AE67: -0.3856624808 | AF67: 0.02226287586 | AG67: -0.003794104548 | AH67: -1.139434283 | AI67: -0.1737043398 | AJ67: -1.438986699 | AK67: -0.5564377351 | AL67: -0.3856624808 | AM67: 0.02226287586 | AN67: -0.003794104548 | AO67: -1.139434283 | AP67: -0.1737043398 | AQ67: -0.3384323891
G68: 24.74719869 | H68: 0.9578870033 | I68: 0.04211299675 | J68: 22538452.92 | K68: 382591.326 | L68: 263.1934407 | M68: 0.3903775405 | N68: 0.6096224595 | O68: 22538449.31 | P68: 382591.4819 | Q68: 779.099867 | R68: 2.453745167 | S68: 0.06908045478 | T68: 0.0281530681 | U68: 10 | AA68: 0.66 | AB68: 0.34 | AC68: 1 | AD68: -0.1937484502 | AE68: -0.415515444 | AF68: 0.0257868421 | AG68: -0.003794104548 | AH68: -1.078809661 | AI68: -0.1808584549 | AJ68: -1.438986699 | AK68: -0.5679369154 | AL68: -0.415515444 | AM68: 0.0257868421 | AN68: -0.003794104548 | AO68: -1.078809661 | AP68: -0.1808584549 | AQ68: -0.3384323891
G69: 25.24719869 | H69: 0.9577330886 | I69: 0.04226691136 | J69: 22982992.28 | K69: 387193.778 | L69: 268.3318407 | M69: 0.3956400068 | N69: 0.6043599932 | O69: 22982987.78 | P69: 387193.9713 | Q69: 779.265886 | R69: 2.420718512 | S69: 0.06993664677 | T69: 0.02889086295 | U69: 10 | AA69: 0.64 | AB69: 0.36 | AC69: 1 | AD69: -0.1816680322 | AE69: -0.4462871026 | AF69: 0.0295680117 | AG69: -0.003794104548 | AH69: -1.021651248 | AI69: -0.1878800092 | AJ69: -1.438986699 | AK69: -0.5778675836 | AL69: -0.4462871026 | AM69: 0.0295680117 | AN69: -0.003794104548 | AO69: -1.021651248 | AP69: -0.1878800092 | AQ69: -0.3384323891
G70: 25.74719869 | H70: 0.9575694262 | I70: 0.04243057379 | J70: 23427542.24 | K70: 391870.0984 | L70: 273.4545528 | M70: 0.4008348075 | N70: 0.5991651925 | O70: 23427536.66 | P70: 391870.336 | Q70: 779.4374103 | R70: 2.388937808 | S70: 0.07081615275 | T70: 0.02964336389 | U70: 10 | AA70: 0.62 | AB70: 0.38 | AC70: 1 | AD70: -0.1680682165 | AE70: -0.4780358009 | AF70: 0.0336152429 | AG70: -0.003794104548 | AH70: -0.9675840263 | AI70: -0.1947706075 | AJ70: -1.438986699 | AK70: -0.5862788541 | AL70: -0.4780358009 | AM70: 0.0336152429 | AN70: -0.003794104548 | AO70: -0.9675840263 | AP70: -0.1947706075 | AQ70: -0.3384323891
G71: 26.24719869 | H71: 0.9573967567 | I71: 0.0426032433 | J71: 23872134.51 | K71: 396621.3425 | L71: 278.5605372 | M71: 0.4059633004 | N71: 0.5940366996 | O71: 23872127.64 | P71: 396621.6319 | Q71: 779.6144294 | R71: 2.358333267 | S71: 0.0717182008 | T71: 0.03041054536 | U71: 10 | AA71: 0.5056409828 | AB71: 0.4943590172 | AC71: 1 | AD71: -0.06278029036 | AE71: -0.6819283816 | AF71: 0.06241593397 | AG71: -0.003794104548 | AH71: -0.7044932703 | AI71: -0.2317168447 | AJ71: -1.438986699 | AK71: -0.6068492372 | AL71: -0.6819283816 | AM71: 0.06241593397 | AN71: -0.003794104548 | AO71: -0.7044932703 | AP71: -0.2317168447 | AQ71: -0.3384323891
G72: 26.74719869 | H72: 0.9572154383 | I72: 0.04278456167 | J72: 24316800.4 | K72: 401448.5821 | L72: 283.6493833 | M72: 0.4110268039 | N72: 0.5889731961 | O72: 24316792 | P72: 401448.9322 | Q72: 779.7969307 | R72: 2.328839456 | S72: 0.0726426295 | T72: 0.03119263087 | U72: 10 | AA72: 0.503621331 | AB72: 0.496378669 | AC72: 1 | AD72: -0.0605143926 | AE72: -0.6859306208 | AF72: 0.0630201959 | AG72: -0.003794104548 | AH72: -0.7004161979 | AI72: -0.2323324042 | AJ72: -1.438986699 | AK72: -0.606806076 | AL72: -0.6859306208 | AM72: 0.0630201959 | AN72: -0.003794104548 | AO72: -0.7004161979 | AP72: -0.2323324042 | AQ72: -0.3384323891
G73: 27.24719869 | H73: 0.9570258688 | I73: 0.04297413123 | J73: 24761570.3 | K73: 406353.0925 | L73: 288.7205442 | M73: 0.4160267551 | N73: 0.5839732449 | O73: 24761566.85 | P73: 406353.255 | Q73: 779.9848409 | R73: 2.300395004 | S73: 0.07358921252 | T73: 0.03198981583 | U73: 11 | AA73: 0.5 | AB73: 0.5 | AC73: 1 | AD73: -0.0564168518 | AE73: -0.6931471806 | AF73: 0.06411280547 | AG73: -0.003794104548 | AH73: -0.6931471806 | AI73: -0.2334329513 | AJ73: -1.438986699 | AK73: -0.6066940066 | AL73: -0.6931471806 | AM73: 0.06411280547 | AN73: -0.003794104548 | AO73: -0.6931471806 | AP73: -0.2334329513 | AQ73: -0.3384323891
G74: 27.74719869 | H74: 0.9568285096 | I74: 0.04317149037 | J74: 25206475.65 | K74: 411335.6432 | L74: 293.77342 | M74: 0.4209641148 | N74: 0.5790358852 | O74: 25206471.4 | P74: 411335.8402 | Q74: 780.1782475 | R74: 2.272945546 | S74: 0.07455753861 | T74: 0.03280216667 | U74: 11 | AA74: 0.45 | AB74: 0.55 | AC74: 1 | AD74: 0.004702522324 | AE74: -0.7985076962 | AF74: 0.08046129644 | AG74: -0.003794104548 | AH74: -0.5978370008 | AI74: -0.2482114158 | AJ74: -1.438986699 | AK74: -0.600602348 | AL74: -0.7985076962 | AM74: 0.08046129644 | AN74: -0.003794104548 | AO74: -0.5978370008 | AP74: -0.2482114158 | AQ74: -0.3384323891
G75: 28.24719869 | H75: 0.9566237078 | I75: 0.04337629216 | J75: 25651546.16 | K75: 416397.5172 | L75: 298.8075003 | M75: 0.4258402224 | N75: 0.5741597776 | O75: 25651540.95 | P75: 416397.7548 | Q75: 780.377083 | R75: 2.246438118 | S75: 0.075547424 | T75: 0.03362987094 | U75: 11 | AA75: 0.4 | AB75: 0.6 | AC75: 1 | AD75: 0.07434016106 | AE75: -0.9162907319 | AF75: 0.09942179021 | AG75: -0.003794104548 | AH75: -0.5108256238 | AI75: -0.2622109151 | AJ75: -1.438986699 | AK75: -0.5859924247 | AL75: -0.9162907319 | AM75: 0.09942179021 | AN75: -0.003794104548 | AO75: -0.5108256238 | AP75: -0.2622109151 | AQ75: -0.3384323891
G76: 28.74719869 | H76: 0.9564118137 | I76: 0.04358818626 | J76: 26096811.58 | K76: 421539.8593 | L76: 303.8222732 | M76: 0.4306562534 | N76: 0.5693437466 | O76: 26096805.21 | P76: 421540.1443 | Q76: 780.5813258 | R76: 2.220824163 | S76: 0.07655864584 | T76: 0.03447307855 | U76: 11 | AA76: 0.35 | AB76: 0.65 | AC76: 1 | AD76: 0.6084993839 | AE76: -1.049822124 | AF76: 3.345306582 | AG76: -0.003794104548 | AH76: -0.4307829161 | AI76: -1.310123956 | AJ76: -1.438986699 | AK76: -0.5626477952 | AL76: -1.049822124 | AM76: 0.1214678128 | AN76: -0.003794104548 | AO76: -0.4307829161 | AP76: -0.2754213542 | AQ76: -0.3384323891
G77: 29.24719869 | H77: 0.9561931553 | I77: 0.04380684474 | J77: 26542301.24 | K77: 426763.8327 | L77: 308.8172469 | M77: 0.4354133515 | N77: 0.5645866485 | O77: 26542293.53 | P77: 426764.173 | Q77: 780.7909526 | R77: 2.196058417 | S77: 0.07759100372 | T77: 0.03533193977 | U77: 11 | AA77: 0.3 | AB77: 0.7 | AC77: 1 | AD77: 0.4783599759 | AE77: -1.203972804 | AF77: 3.484324067 | AG77: -0.003794104548 | AH77: -0.3566749439 | AI77: -1.377859804 | AJ77: -1.438986699 | AK77: -0.5301189206 | AL77: -1.203972804 | AM77: 0.1472612907 | AN77: -0.003794104548 | AO77: -0.3566749439 | AP77: -0.2878198707 | AQ77: -0.3384323891
G78: 29.74719869 | H78: 0.9559680396 | I78: 0.04403196038 | J78: 26988044.15 | K78: 432070.6197 | L78: 313.7919501 | M78: 0.4401126293 | N78: 0.5598873707 | O78: 26988034.84 | P78: 432071.024 | Q78: 781.0059381 | R78: 2.172098631 | S78: 0.07864431791 | T78: 0.03620660535 | U78: 11 | AA78: 0.25 | AB78: 0.75 | AC78: 1 | AD78: 0.3523347449 | AE78: -1.386294361 | AF78: 3.569883644 | AG78: -0.003794104548 | AH78: -0.2876820725 | AI78: -1.410652762 | AJ78: -1.438986699 | AK78: -0.4876446764 | AL78: -1.386294361 | AM78: 0.1777684201 | AN78: -0.003794104548 | AO78: -0.2876820725 | AP78: -0.2993659397 | AQ78: -0.3384323891
G79: 30.24719869 | H79: 0.9557367198 | I79: 0.04426328024 | J79: 27434068.32 | K79: 437461.6166 | L79: 318.7459616 | M79: 0.4447553345 | N79: 0.5552446655 | O79: 27434064.05 | P79: 437461.8192 | Q79: 781.2261915 | R79: 2.148904455 | S79: 0.07971851508 | T79: 0.03709728224 | U79: 12 | AA79: 0.2 | AB79: 0.8 | AC79: 1 | AD79: 0.235037186 | AE79: -1.609437912 | AF79: 3.626087353 | AG79: -0.003794104548 | AH79: -0.2231435513 | AI79: -1.427157551 | AJ79: -1.438986699 | AK79: -0.4339943378 | AL79: -1.609437912 | AM79: 0.2144868508 | AN79: -0.003794104548 | AO79: -0.2231435513 | AP79: -0.3099925208 | AQ79: -0.3384323891
G80: 30.74719869 | H80: 0.9554995313 | I80: 0.04450046871 | J80: 27880403.04 | K80: 442937.684 | L80: 323.6787947 | M80: 0.4493422237 | N80: 0.5506577763 | O80: 27880397.84 | P80: 442937.9259 | Q80: 781.451799 | R80: 2.126440563 | S80: 0.0808132939 | T80: 0.03800402198 | U80: 12 | AA80: 0.15 | AB80: 0.85 | AC80: 1 | AD80: 0.1306274886 | AE80: -1.897119985 | AF80: 3.66241878 | AG80: -0.003794104548 | AH80: -0.1625189295 | AI80: -1.434981236 | AJ80: -1.438986699 | AK80: -0.367130172 | AL80: -1.897119985 | AM80: 0.259950038 | AN80: -0.003794104548 | AO80: -0.1625189295 | AP80: -0.3195885134 | AQ80: -0.3384323891
G81: 31.24719869 | H81: 0.9552566981 | I81: 0.04474330189 | J81: 28327075.67 | K81: 448500.231 | L81: 328.5900634 | M81: 0.4538744625 | N81: 0.5461255375 | O81: 28327069.39 | P81: 448500.5188 | Q81: 781.682677 | R81: 2.104671615 | S81: 0.08192860217 | T81: 0.03892702385 | U81: 12 | AA81: 0.1 | AB81: 0.9 | AC81: 1 | AD81: 0.04446036437 | AE81: -2.302585093 | AF81: 3.683855118 | AG81: -0.003794104548 | AH81: -0.1053605157 | AI81: -1.438121793 | AJ81: -1.438986699 | AK81: -0.2833690957 | AL81: -2.302585093 | AM81: 0.3190788555 | AN81: -0.003794104548 | AO81: -0.1053605157 | AP81: -0.3279584095 | AQ81: -0.3384323891
G82: 31.74719869 | H82: 0.9550084594 | I82: 0.04499154063 | J82: 28774113.73 | K82: 454150.5185 | L82: 333.4793759 | M82: 0.4583530524 | N82: 0.5416469476 | O82: 28774106.17 | P82: 454150.8596 | Q82: 781.9187934 | R82: 2.083565178 | S82: 0.0830643297 | T82: 0.0398664417 | U82: 12 | AA82: 0.05 | AB82: 0.95 | AC82: 1 | AD82: -0.01362199922 | AE82: -2.995732274 | AF82: 3.693435641 | AG82: -0.003794104548 | AH82: -0.05129329439 | AI82: -1.43895327 | AJ82: -1.438986699 | AK82: -0.1745691269 | AL82: -2.995732274 | AM82: 0.4042349211 | AN82: -0.003794104548 | AO82: -0.05129329439 | AP82: -0.3347011627 | AQ82: -0.3384323891
G83: 32.24719869 | H83: 0.9547550402 | I83: 0.04524495979 | J83: 29221544.34 | K83: 459889.8275 | L83: 338.3463595 | M83: 0.4627789698 | N83: 0.5372210302 | O83: 29221535.29 | P83: 459890.2301 | Q83: 782.1601145 | R83: 2.063090811 | S83: 0.08422038089 | T83: 0.04082243032 | U83: 12 | AA83: 0.04 | AB83: 0.96 | AC83: 1 | AD83: -0.02002679625 | AE83: -3.218875825 | AF83: 3.694120605 | AG83: -0.003794104548 | AH83: -0.04082199452 | AI83: -1.438985904 | AJ83: -1.438986699 | AK83: -0.148158891 | AL83: -3.218875825 | AM83: 0.427210173 | AN83: -0.003794104548 | AO83: -0.04082199452 | AP83: -0.3357812583 | AQ83: -0.3384323891
G84: 32.74719869 | H84: 0.9544966196 | I84: 0.04550338044 | J84: 29669393.74 | K84: 465719.6397 | L84: 343.1906905 | M84: 0.4671533199 | N84: 0.5328466801 | O84: 29669389.22 | P84: 465719.8547 | Q84: 782.4065439 | R84: 2.043219172 | S84: 0.08539676071 | T84: 0.04179520331 | U84: 13 | AA84: 0.03 | AB84: 0.97 | AC84: 1 | AD84: -0.02380587278 | AE84: -3.506557897 | AF84: 3.694427801 | AG84: -0.003794104548 | AH84: -0.03045920748 | AI84: -1.438997381 | AJ84: -1.438986699 | AK84: -0.1193744358 | AL84: -3.506557897 | AM84: 0.4537254289 | AN84: -0.003794104548 | AO84: -0.03045920748 | AP84: -0.3367394547 | AQ84: -0.3384323891
G85: 33.24719869 | H85: 0.9542334587 | I85: 0.04576654133 | J85: 30117689.39 | K85: 471640.9439 | L85: 348.0119793 | M85: 0.471476752 | N85: 0.528523248 | O85: 30117683.94 | P85: 471641.1991 | Q85: 782.6581564 | R85: 2.023924731 | S85: 0.08659324165 | T85: 0.04278481324 | U85: 13 | AA85: 0.02 | AB85: 0.98 | AC85: 1 | AD85: -0.02408515311 | AE85: -3.912023005 | AF85: 3.694369479 | AG85: -0.003794104548 | AH85: -0.02020270732 | AI85: -1.4389962 | AJ85: -1.438986699 | AK85: -0.08738707144 | AL85: -3.912023005 | AM85: 0.4854486465 | AN85: -0.003794104548 | AO85: -0.02020270732 | AP85: -0.3375475046 | AQ85: -0.3384323891
G86: 33.74719869 | H86: 0.9539657174 | I86: 0.04603428262 | J86: 30566456.89 | K86: 477655.2406 | L86: 352.8099355 | M86: 0.4757503018 | N86: 0.5242496982 | O86: 30566450.34 | P86: 477655.5424 | Q86: 782.9148627 | R86: 2.005181529 | S86: 0.08780984095 | T86: 0.04379146711 | U86: 13 | AA86: 0.01 | AB86: 0.99 | AC86: =SUM(AA86:AB86) -> 1 | AD86: -0.01902750479 | AE86: -4.605170186 | AF86: 3.693957159 | AG86: -0.003794104548 | AH86: -0.01005033585 | AI86: -1.438990217 | AJ86: -1.438986699 | AK86: =AA86*(AM86+AL86-AN86)+AB86*(AP86+AO86-AQ86) -> -0.05042897951 | AL86: -4.605170186 | AM86: 0.5259559582 | AN86: -0.003794104548 | AO86: -0.01005033585 | AP86: -0.3381545566 | AQ86: -0.3384323891
G87: 34.24719869 | H87: 0.9536935736 | I87: 0.04630642636 | J87: 31015721.99 | K87: 483763.8952 | L87: 357.5842612 | M87: 0.4799748537 | N87: 0.5200251463 | O87: 31015714.17 | P87: 483764.251 | Q87: 783.1766237 | R87: 1.986965705 | S87: 0.08904651379 | T87: 0.04481532497 | U87: 13 | AA87: =(1-AB87) -> 0.001 | AB87: 0.999 | AC87: 1 | AD87: =AA87*(AF87+AE87-AG87)+AB87*(AI87+AH87-AJ87) -> -0.004210213673 | AE87: -6.907755279 | AF87: =LnPhiL_i_Tci_Pci_wi_kijm_lijm_T_P_xyi(1,$F$8:$F$9,$G$8:$G$9,$H$8:$H$9,$O$8:$P$9,$S$8:$T$9,$AC$18,$AC$19*1000000,AA87:AB87) -> 3.693292388 | AG87: -0.003794104548 | AH87: -0.001000500334 | AI87: -1.438986744 | AJ87: -1.438986699 | AK87: -0.007320688144 | AL87: =LN(AA87) -> -6.907755279 | AM87: 0.5788488633 | AN87: -0.003794104548 | AO87: =LN(AB87) -> -0.001000500334 | AP87: -0.3384284612 | AQ87: -0.3384323891
G88: 34.74719869 | H88: 0.9534171955 | I88: 0.04658280453 | J88: 31465510.09 | K88: 489968.295 | L88: 362.3346767 | M88: 0.4841512713 | N88: 0.5158487287 | O88: 31465500.8 | P88: 489968.7131 | Q88: 783.4433991 | R88: 1.96925476 | S88: 0.09030322637 | T88: 0.04585654848 | U88: 13
G89: 35.24719869 | H89: 0.9531367416 | I89: 0.04686325839 | J89: 31915846.29 | K89: 496269.8494 | L89: 367.0609197 | M89: 0.4882803976 | N89: 0.5117196024 | O89: 31915835.29 | P89: 496270.3393 | Q89: 783.7151475 | R89: 1.952027454 | S89: 0.09157995546 | T89: 0.04691530094 | U89: 13
G90: 35.74719869 | H90: 0.9528523249 | I90: 0.04714767508 | J90: 32366754.7 | K90: 502670.1868 | L90: 371.7627802 | M90: 0.4923632347 | N90: 0.5076367653 | O90: 32366748.72 | P90: 502670.4666 | Q90: 783.991753 | R90: 1.935262948 | S90: 0.09287679361 | T90: 0.04799182133 | U90: 14
G91: 36.24719869 | H91: 0.9525641561 | I91: 0.0474358439 | J91: 32818260.91 | K91: 509170.3963 | L91: 376.4399652 | M91: 0.496400261 | N91: 0.503599739 | O91: 32818253.78 | P91: 509170.7258 | Q91: 784.2733063 | R91: 1.918943705 | S91: 0.09419354345 | T91: 0.04908614213 | U91: 14
G92: 36.74719869 | H92: 0.9522723368 | I92: 0.0477276632 | J92: 33270388.5 | K92: 515772.1278 | L92: 381.0922936 | M92: 0.5003924151 | N92: 0.4996075849 | O92: 33270380.04 | P92: 515772.5147 | Q92: 784.5597006 | R92: 1.903051102 | S92: 0.09553030146 | T92: 0.05019849513 | U92: 14
G93: 37.24719869 | H93: 0.9519769937 | I93: 0.04802300625 | J93: 33723161.25 | K93: 522476.8831 | L93: 385.7195699 | M93: 0.5043404664 | N93: 0.4956595336 | O93: 33723151.27 | P93: 522477.336 | Q93: 784.8508903 | R93: 1.887568135 | S93: 0.09688708276 | T93: 0.05132905188 | U93: 14
G94: 37.74719869 | H94: 0.9516782468 | I94: 0.04832175322 | J94: 34176602.68 | K94: 529286.1875 | L94: 390.3216145 | M94: 0.508245167 | N94: 0.491754833 | O94: 34176590.93 | P94: 529286.7161 | Q94: 785.1468291 | R94: 1.872478695 | S94: 0.09826391116 | T94: 0.05247798623 | U94: 14
G95: 38.24719869 | H95: 0.9513761717 | I95: 0.04862382828 | J95: 34630735.32 | K95: 536201.7846 | L95: 394.8982998 | M95: 0.512107436 | N95: 0.487892564 | O95: 34630728.51 | P95: 536202.1032 | Q95: 785.4473926 | R95: 1.857766759 | S95: 0.0996609333 | T95: 0.05364555739 | U95: 15
G96: 38.74719869 | H96: 0.9510709456 | I96: 0.04892905445 | J96: 35085583.27 | K96: 543224.8867 | L96: 399.4494084 | M96: 0.5159276563 | N96: 0.4840723437 | O96: 35085575.22 | P96: 543225.2605 | Q96: 785.7526746 | R96: 1.843419196 | S96: 0.1010779795 | T96: 0.05483179286 | U96: 15
G97: 39.24719869 | H97: 0.9507626368 | I97: 0.04923736322 | J97: 35541168.57 | K97: 550357.2638 | L97: 403.9748374 | M97: 0.5197066897 | N97: 0.4802933103 | O97: 35541159.08 | P97: 550357.701 | Q97: 786.0625603 | R97: 1.829421587 | S97: 0.1025151968 | T97: 0.05603694497 | U97: 15
G98: 39.74719869 | H98: 0.9504513412 | I98: 0.04954865882 | J98: 35997513.54 | K98: 557600.5403 | L98: 408.4744665 | M98: 0.5234452259 | N98: 0.4765547741 | O98: 35997502.4 | P98: 557601.0503 | Q98: 786.3770003 | R98: 1.815760836 | S98: 0.1039726418 | T98: 0.05726119856 | U98: 15
G99: 40.24719869 | H99: 0.9501371148 | I99: 0.04986288524 | J99: 36454639.62 | K99: 564956.5417 | L99: 412.9482232 | M99: 0.5271441095 | N99: 0.4728558905 | O99: 36454632.85 | P99: 564956.8623 | Q99: 786.6958719 | R99: 1.802423849 | S99: 0.1054504898 | T99: 0.05850482383 | U99: 16
G100: 40.74719869 | H100: 0.9498201073 | I100: 0.05017989271 | J100: 36912569.67 | K100: 572426.6177 | L100: 417.3959501 | M100: 0.5308036906 | N100: 0.4691963094 | O100: 36912561.69 | P100: 572426.9934 | Q100: 787.0192575 | R100: 1.789399969 | S100: 0.1069486092 | T100: 0.05976786131 | U100: 16
G101: 41.24719869 | H101: 0.9495003693 | I101: 0.05049963073 | J101: 37371324.68 | K101: 580012.6254 | L101: 421.8175968 | M101: 0.5344247625 | N101: 0.4655752375 | O101: 37371315.3 | P101: 580013.0645 | Q101: 787.3470435 | R101: 1.776677347 | S101: 0.1084671749 | T101: 0.06105057572 | U101: 16
G102: 41.74719869 | H102: 0.9491779769 | I102: 0.05082202309 | J102: 37830925.85 | K102: 587716.2947 | L102: 426.2130954 | M102: 0.5380079602 | N102: 0.4619920398 | O102: 37830914.87 | P102: 587716.8064 | Q102: 787.679178 | R102: 1.764245229 | S102: 0.1100062744 | T102: 0.0623531653 | U102: 16
G103: 42.24719869 | H103: 0.9488530021 | I103: 0.05114699793 | J103: 38291394.16 | K103: 595539.3828 | L103: 430.5823902 | M103: 0.5415539061 | N103: 0.4584460939 | O103: 38291381.36 | P103: 595539.9776 | Q103: 788.0156083 | R103: 1.752093358 | S103: 0.1115660022 | T103: 0.06367583194 | U103: 16
G104: 42.74719869 | H104: 0.9485254749 | I104: 0.05147452509 | J104: 38752749.67 | K104: 603483.86 | L104: 434.9254754 | M104: 0.5450633979 | N104: 0.4549366021 | O104: 38752741.46 | P104: 603484.2515 | Q104: 788.3561992 | R104: 1.740211283 | S104: 0.1131465898 | T104: 0.06501888069 | U104: 17
G105: 43.24719869 | H105: 0.9481955292 | I105: 0.0518044708 | J105: 39215014.03 | K105: 611551.1926 | L105: 439.2422472 | M105: 0.5485366869 | N105: 0.4514633131 | O105: 39215004.42 | P105: 611551.6496 | Q105: 788.7010485 | R105: 1.728590907 | S105: 0.1147479082 | T105: 0.06638233934 | U105: 17
G106: 43.74719869 | H106: 0.9478631919 | I106: 0.0521368081 | J106: 39678206.88 | K106: 619743.386 | L106: 443.5327174 | M106: 0.5519745221 | N106: 0.4480254779 | O106: 39678195.67 | P106: 619743.918 | Q106: 789.0500313 | R106: 1.717222723 | S106: 0.1163701858 | T106: 0.06776650706 | U106: 17
G107: 44.24719869 | H107: 0.9475285193 | I107: 0.05247148067 | J107: 40142348.21 | K107: 628062.3108 | L107: 447.7968751 | M107: 0.5553774793 | N107: 0.4446225207 | O107: 40142335.17 | P107: 628062.9285 | Q107: 789.403093 | R107: 1.706098203 | S107: 0.1180135468 | T107: 0.06917160256 | U107: 17
G108: 44.74719869 | H108: 0.9471915272 | I108: 0.0528084728 | J108: 40607457.1 | K108: 636510.0462 | L108: 452.0347576 | M108: 0.5587463093 | N108: 0.4412536907 | O108: 40607448.41 | P108: 636510.4677 | Q108: 789.7600958 | R108: 1.695208562 | S108: 0.1196782574 | T108: 0.07059795482 | U108: 18
G109: 45.24719869 | H109: 0.9468523341 | I109: 0.0531476659 | J109: 41073554.25 | K109: 645088.1872 | L109: 456.2463027 | M109: 0.5620812222 | N109: 0.4379187778 | O109: 41073544.11 | P109: 645088.6784 | Q109: 790.1211367 | R109: 1.684547173 | S109: 0.1213642086 | T109: 0.07204559808 | U109: 18
G110: 45.74719869 | H110: 0.9465109537 | I110: 0.05348904634 | J110: 41540658.37 | K110: 653798.8522 | L110: 460.4315624 | M110: 0.5653829238 | N110: 0.4346170762 | O110: 41540646.57 | P110: 653799.4233 | Q110: 790.4860882 | R110: 1.674106015 | S110: 0.123071663 | T110: 0.07351485623 | U110: 18
G111: 46.24719869 | H111: 0.946167429 | I111: 0.05383257104 | J111: 42008788.52 | K111: 662644.0325 | L111: 464.5905645 | M111: 0.5686519489 | N111: 0.4313480511 | O111: 42008774.83 | P111: 662644.6948 | Q111: 790.8548938 | R111: 1.663877932 | S111: 0.1248007749 | T111: 0.07500596798 | U111: 18
G112: 46.74719869 | H112: 0.9458217623 | I112: 0.05417823765 | J112: 42477962.88 | K112: 671625.9286 | L112: 468.7233844 | M112: 0.5718890127 | N112: 0.4281109873 | O112: 42477953.42 | P112: 671626.3959 | Q112: 791.227411 | R112: 1.653855453 | S112: 0.1265518505 | T112: 0.07651929328 | U112: 19
G113: 47.24719869 | H113: 0.9454740614 | I113: 0.0545259386 | J113: 42948201.29 | K113: 680746.2611 | L113: 472.8299938 | M113: 0.5750942789 | N113: 0.4249057211 | O113: 42948190.29 | P113: 680746.8048 | Q113: 791.6037406 | R113: 1.644033154 | S113: 0.1283247928 | T113: 0.07805486917 | U113: 19
G114: 47.74719869 | H114: 0.9451243273 | I114: 0.0548756727 | J114: 43419521.6 | K114: 690007.274 | L114: 476.9104801 | M114: 0.5782684203 | N114: 0.4217315797 | O114: 43419508.84 | P114: 690007.9051 | Q114: 791.9837504 | R114: 1.634404187 | S114: 0.1301199041 | T114: 0.07961305111 | U114: 19
G115: 48.24719869 | H115: 0.944772557 | I115: 0.05522744303 | J115: 43891941.43 | K115: 699411.2475 | L115: 480.9649402 | M115: 0.5814121098 | N115: 0.4185878902 | O115: 43891932.37 | P115: 699411.7044 | Q115: 792.367303 | R115: 1.624961952 | S115: 0.1319375078 | T115: 0.08119421358 | U115: 20
G116: 48.74719869 | H116: 0.9444188442 | I116: 0.05558115582 | J116: 44365479.91 | K116: 708960.0325 | L116: 484.9933747 | M116: 0.5845255157 | N116: 0.4154744843 | O116: 44365469.37 | P116: 708960.5645 | Q116: 792.7544855 | R116: 1.615701657 | S116: 0.1337775433 | T116: 0.08279841934 | U116: 20
G117: 49.24719869 | H117: 0.9440631849 | I117: 0.05593681512 | J117: 44840154.32 | K117: 718655.9574 | L117: 488.9958904 | M117: 0.5876092722 | N117: 0.4123907278 | O117: 44840142.1 | P117: 718656.5752 | Q117: 793.1451699 | R117: 1.606617236 | S117: 0.1356403317 | T117: 0.08442604043 | U117: 20
G118: 49.74719869 | H118: 0.943705603 | I118: 0.05629439697 | J118: 45315982.31 | K118: 728501.2425 | L118: 492.9725694 | M118: 0.5906638548 | N118: 0.4093361452 | O118: 45315968.19 | P118: 728501.9583 | Q118: 793.5392961 | R118: 1.597703322 | S118: 0.1375260837 | T118: 0.0860773598 | U118: 20
G119: 50.24719869 | H119: 0.9433460829 | I119: 0.05665391711 | J119: 45792980.69 | K119: 738498.3117 | L119: 496.9235394 | M119: 0.5936899191 | N119: 0.4063100809 | O119: 45792970.34 | P119: 738498.8454 | Q119: 793.9367173 | R119: 1.588954187 | S119: 0.1394351747 | T119: 0.08775279728 | U119: 21
G120: 50.74719869 | H120: 0.9429847133 | I120: 0.05701528669 | J120: 46271167.9 | K120: 748649.1389 | L120: 500.8488221 | M120: 0.596687578 | N120: 0.403312422 | O120: 46271155.91 | P120: 748649.759 | Q120: 794.3375316 | R120: 1.58036592 | S120: 0.1413675443 | T120: 0.08945241255 | U120: 21
G121: 51.24719869 | H121: 0.9426214784 | I121: 0.0573785216 | J121: 46750560.48 | K121: 758956.1997 | L121: 504.7485526 | M121: 0.5996558874 | N121: 0.4003441126 | O121: 46750546.66 | P121: 758956.9177 | Q121: 794.7426834 | R121: 1.571937336 | S121: 0.1433230059 | T121: 0.0911760301 | U121: 21
G122: 51.74719869 | H122: 0.9422563567 | I122: 0.05774364332 | J122: 47231174.74 | K122: 769422.0172 | L122: 508.6228752 | M122: 0.6025982679 | N122: 0.3974017321 | O122: 47231164.35 | P122: 769422.5651 | Q122: 795.1500899 | R122: 1.563655933 | S122: 0.1453029483 | T122: 0.09292514114 | U122: 22
G123: 52.24719869 | H123: 0.9418894281 | I123: 0.05811057195 | J123: 47713028.54 | K123: 780048.6901 | L123: 512.4718309 | M123: 0.6055135365 | N123: 0.3944864635 | O123: 47713016.52 | P123: 780049.3267 | Q123: 795.5607379 | R123: 1.555521671 | S123: 0.1473068846 | T123: 0.09469934579 | U123: 22
G124: 52.74719869 | H124: 0.9415206711 | I124: 0.0584793289 | J124: 48196137.95 | K124: 790838.7972 | L124: 516.2955699 | M124: 0.6084022771 | N124: 0.3915977229 | O124: 48196124.07 | P124: 790839.5352 | Q124: 795.9744968 | R124: 1.547529828 | S124: 0.1493352118 | T124: 0.09649908462 | U124: 22
G125: 53.24719869 | H125: 0.9411500583 | I125: 0.05884994172 | J125: 48680518.79 | K125: 801794.9694 | L125: 520.0942518 | M125: 0.6112650873 | N125: 0.3887349127 | O125: 48680508.14 | P125: 801795.5444 | Q125: 796.3912256 | R125: 1.539675793 | S125: 0.1513883621 | T125: 0.09832483095 | U125: 23
G126: 53.74719869 | H126: 0.9407776625 | I126: 0.05922233754 | J126: 49166188.43 | K126: 812919.4285 | L126: 523.8679328 | M126: 0.6141020514 | N126: 0.3858979486 | O126: 49166176.11 | P126: 812920.0964 | Q126: 796.8110192 | R126: 1.531956554 | S126: 0.1534663186 | T126: 0.1001766781 | U126: 23
G127: 54.24719869 | H127: 0.9404034564 | I127: 0.05959654364 | J127: 49653162.45 | K127: 824214.8648 | L127: 527.616777 | M127: 0.6169137319 | N127: 0.3830862681 | O127: 49653148.24 | P127: 824215.6391 | Q127: 797.2337468 | R127: 1.524367845 | S127: 0.1555695116 | T127: 0.1020550992 | U127: 23
G128: 54.74719869 | H128: 0.940027406 | I128: 0.05997259404 | J128: 50141456.23 | K128: 835684.0256 | L128: 531.3409574 | M128: 0.6197007088 | N128: 0.3802992912 | O128: 50141445.1 | P128: 835684.641 | Q128: 797.659266 | R128: 1.516905488 | S128: 0.1576984113 | T128: 0.1039606044 | U128: 24
G129: 55.24719869 | H129: 0.9396495788 | I129: 0.0603504212 | J129: 50631086.69 | K129: 847329.2545 | L129: 535.0405424 | M129: 0.6224630464 | N129: 0.3775369536 | O129: 50631073.83 | P129: 847329.9693 | Q129: 798.0876731 | R129: 1.509566848 | S129: 0.1598530174 | T129: 0.1058933015 | U129: 24
G130: 55.74719869 | H130: 0.9392699413 | I130: 0.06073005865 | J130: 51122068.98 | K130: 859153.3622 | L130: 538.7157084 | M130: 0.6252012905 | N130: 0.3747987095 | O130: 51122054.16 | P130: 859154.1905 | Q130: 798.5188361 | R130: 1.502348053 | S130: 0.1620337987 | T130: 0.1078537017 | U130: 24
G131: 56.24719869 | H131: 0.9388884526 | I131: 0.06111154738 | J131: 51614418.02 | K131: 871159.2202 | L131: 542.3666409 | M131: 0.6279160079 | N131: 0.3720839921 | O131: 51614406.18 | P131: 871159.8914 | Q131: 798.9526097 | R131: 1.495245289 | S131: 0.1642412699 | T131: 0.1098423591 | U131: 25
G132: 56.74719869 | H132: 0.9385051764 | I132: 0.0614948236 | J132: 52108150.35 | K132: 883349.2945 | L132: 545.9934171 | M132: 0.6306072386 | N132: 0.3693927614 | O132: 52108136.68 | P132: 883350.0737 | Q132: 799.3890943 | R132: 1.488256269 | S132: 0.166475443 | T132: 0.1118593931 | U132: 25
G133: 57.24719869 | H133: 0.9381200381 | I133: 0.06187996188 | J133: 52603280.14 | K133: 895726.6656 | L133: 549.5962604 | M133: 0.6332756822 | N133: 0.3667243178 | O133: 52603269.06 | P133: 895727.306 | Q133: 799.8280766 | R133: 1.481377012 | S133: 0.1687370018 | T133: 0.1139055084 | U133: 26
G134: 57.74719869 | H134: 0.9377330922 | I134: 0.06226690779 | J134: 53099823.57 | K134: 908293.9131 | L134: 553.1752601 | M134: 0.6359213988 | N134: 0.3640786012 | O134: 53099810.77 | P134: 908294.6577 | Q134: 800.2696431 | R134: 1.474605343 | S134: 0.1710260026 | T134: 0.1159808646 | U134: 26
G135: 58.24719869 | H135: 0.9373442972 | I135: 0.06265570275 | J135: 53597795.16 | K135: 921054.0506 | L135: 556.730607 | M135: 0.6385448977 | N135: 0.3614551023 | O135: 53597780.42 | P135: 921054.9145 | Q135: 800.7136651 | R135: 1.467937964 | S135: 0.173342975 | T135: 0.1180860358 | U135: 26
G136: 58.74719869 | H136: 0.9369536034 | I136: 0.06304639661 | J136: 54097209.23 | K136: 934010.16 | L136: 560.262501 | M136: 0.6411467142 | N136: 0.3588532858 | O136: 54097197.06 | P136: 934010.8825 | Q136: 801.1599988 | R136: 1.461371606 | S136: 0.1756885031 | T136: 0.1202216482 | U136: 27
G137: 59.24719869 | H137: 0.9365610637 | I137: 0.06343893628 | J137: 54598081.62 | K137: 947164.9436 | L137: 563.7710355 | M137: 0.6437268758 | N137: 0.3562731242 | O137: 54598067.58 | P137: 947165.7829 | Q137: 801.6087397 | R137: 1.454904399 | S137: 0.1780626491 | T137: 0.122387869 | U137: 27
G138: 59.74719869 | H138: 0.9361665943 | I138: 0.06383340568 | J138: 55100425.94 | K138: 960521.6963 | L138: 567.2564469 | M138: 0.6462860524 | N138: 0.3537139476 | O138: 55100414.2 | P138: 960522.4075 | Q138: 802.0596751 | R138: 1.448532876 | S138: 0.1804661821 | T138: 0.1245854927 | U138: 28
G139: 60.24719869 | H139: 0.935770241 | I139: 0.06422975895 | J139: 55604257.75 | K139: 974083.2317 | L139: 570.7188374 | M139: 0.6488242826 | N139: 0.3511757174 | O139: 55604244.2 | P139: 974084.059 | Q139: 802.5128911 | R139: 1.44225527 | S139: 0.1828992034 | T139: 0.1268147236 | U139: 28
G140: 60.74719869 | H140: 0.9353719526 | I140: 0.06462804736 | J140: 56109591.01 | K140: 987852.7924 | L140: 574.1584098 | M140: 0.6513420532 | N140: 0.3486579468 | O140: 56109575.4 | P140: 987853.7527 | Q140: 802.9682579 | R140: 1.436068726 | S140: 0.1853623242 | T140: 0.1290762209 | U140: 28
G141: 61.24719869 | H141: 0.9349716681 | I141: 0.06502833195 | J141: 56616439.45 | K141: 1001833.696 | L141: 577.5753771 | M141: 0.6538398826 | N141: 0.3461601174 | O141: 56616426.18 | P141: 1001834.523 | Q141: 803.4256277 | R141: 1.429970384 | S141: 0.1878562222 | T141: 0.1313707083 | U141: 29
G142: 61.74719869 | H142: 0.934569434 | I142: 0.06543056605 | J142: 57124818.39 | K142: 1016028.883 | L142: 580.9698411 | M142: 0.6563177696 | N142: 0.3436822304 | O142: 57124803.1 | P142: 1016029.843 | Q142: 803.8851002 | R142: 1.423958755 | S142: 0.1903809981 | T142: 0.1336983936 | U142: 29
G143: 62.24719869 | H143: 0.9341651527 | I143: 0.0658348473 | J143: 57634740.88 | K143: 1030441.895 | L143: 584.342052 | M143: 0.6587763774 | N143: 0.3412236226 | O143: 57634727.72 | P143: 1030442.732 | Q143: 804.3464539 | R143: 1.418030738 | S143: 0.1929375429 | T143: 0.1360601979 | U143: 30
G144: 62.74719869 | H144: 0.9337588654 | I144: 0.06624113459 | J144: 58146221.99 | K144: 1045075.783 | L144: 587.692117 | M144: 0.6612157087 | N144: 0.3387842913 | O144: 58146206.82 | P144: 1045076.756 | Q144: 804.8097832 | R144: 1.412184939 | S144: 0.1955259919 | T144: 0.138456364 | U144: 30
G145: 63.24719869 | H145: 0.9333504715 | I145: 0.06664952845 | J145: 58659274.6 | K145: 1059934.183 | L145: 591.0202885 | M145: 0.6636364111 | N145: 0.3363635889 | O145: 58659261.4 | P145: 1059935.041 | Q145: 805.2748695 | R145: 1.406418418 | S145: 0.1981472747 | T145: 0.1408878554 | U145: 31
G146: 63.29719869 | H146: 0.9333095394 | I146: 0.06669046056 | J146: 58710667.19 | K146: 1061432.411 | L146: 591.3518836 | M146: 0.6638773047 | N146: 0.3361226953 | O146: 58710650.49 | P146: 1061433.462 | Q146: 805.3215519 | R146: 1.405846431 | S146: 0.1984110609 | T146: 0.1411328126 | U146: 22
G147: 63.79719869 | H147: 0.9328988442 | I147: 0.06710115585 | J147: 59225465.24 | K147: 1076541.527 | L147: 594.6561277 | M147: 0.6662776911 | N147: 0.3337223089 | O147: 59225449.79 | P147: 1076542.541 | Q147: 805.7885927 | R147: 1.400165211 | S147: 0.201068835 | T147: 0.14360365 | U147: 31
G148: 63.84719869 | H148: 0.9328576373 | I148: 0.06714236271 | J148: 59277032.57 | K148: 1078065.196 | L148: 594.9853845 | M148: 0.666516771 | N148: 0.333483229 | O148: 59277018.45 | P148: 1078066.098 | Q148: 805.8353706 | R148: 1.399601147 | S148: 0.2013365497 | T148: 0.1438528041 | U148: 23
G149: 64.34719869 | H149: 0.9324445879 | I149: 0.06755541211 | J149: 59793592.52 | K149: 1093429.278 | L149: 598.265934 | M149: 0.6688972115 | N149: 0.3311027885 | O149: 59793578.72 | P149: 1093430.196 | Q149: 806.3042962 | R149: 1.394002803 | S149: 0.2040315408 | T149: 0.1463637952 | U149: 32
G150: 64.39719869 | H150: 0.9324031713 | I150: 0.06759682868 | J150: 59845337.28 | K150: 1094978.552 | L150: 598.5928041 | M150: 0.6691341855 | N150: 0.3308658145 | O150: 59845321.55 | P150: 1094979.569 | Q150: 806.351322 | R150: 1.393447221 | S150: 0.2043028495 | T150: 0.1466168552 | U150: 23
G151: 64.89719869 | H151: 0.9319877239 | I151: 0.06801227612 | J151: 60363675.64 | K151: 1110601.882 | L151: 601.8498819 | M151: 0.6714950694 | N151: 0.3285049306 | O151: 60363659.5 | P151: 1110602.966 | Q151: 806.8220515 | R151: 1.387929363 | S151: 0.2070357848 | T151: 0.1491688197 | U151: 32
G152: 64.94719869 | H152: 0.9319460235 | I152: 0.06805397651 | J152: 60415598.46 | K152: 1112177.45 | L152: 602.1744584 | M152: 0.6717303018 | N152: 0.3282696982 | O152: 60415584.99 | P152: 1112178.334 | Q152: 806.8691589 | R152: 1.387381247 | S152: 0.207311174 | T152: 0.1494262478 | U152: 24
G153: 65.44719869 | H153: 0.9315281266 | I153: 0.06847187342 | J153: 60935731.59 | K153: 1128064.396 | L153: 605.4082938 | M153: 0.6740720094 | N153: 0.3259279906 | O153: 60935717 | P153: 1128065.388 | Q153: 807.341613 | R153: 1.381941564 | S153: 0.2100828262 | T153: 0.1520200505 | U153: 33
G154: 65.49719869 | H154: 0.9314862064 | I154: 0.06851379363 | J154: 60987835.1 | K154: 1129666.444 | L154: 605.7305294 | M154: 0.6743052151 | N154: 0.3256947849 | O154: 60987820.08 | P154: 1129667.442 | Q154: 807.3889512 | R154: 1.381401457 | S154: 0.210361961 | T154: 0.1522815544 | U154: 24
G155: 65.99719869 | H155: 0.9310657775 | I155: 0.06893422255 | J155: 61509778.81 | K155: 1145821.552 | L155: 608.9413818 | M155: 0.6766282723 | N155: 0.3233717277 | O155: 61509765.54 | P155: 1145822.468 | Q155: 807.8629775 | R155: 1.376037354 | S155: 0.2131733131 | T155: 0.1549182604 | U155: 34
G156: 66.04719869 | H156: 0.931023632 | I156: 0.06897636797 | J156: 61562064.64 | K156: 1147450.53 | L156: 609.2612996 | M156: 0.6768594907 | N156: 0.3231405093 | O156: 61562047.92 | P156: 1147451.654 | Q156: 807.9105379 | R156: 1.375505027 | S156: 0.2134562705 | T156: 0.1551839261 | U156: 24
G157: 66.54719869 | H157: 0.9306006495 | I157: 0.06939935053 | J157: 62085835.58 | K157: 1163878.188 | L157: 612.4493652 | M157: 0.6791641237 | N157: 0.3208358763 | O157: 62085820.01 | P157: 1163879.274 | Q157: 808.386128 | R157: 1.370214676 | S157: 0.2163079495 | T157: 0.1578642773 | U157: 34
G158: 66.59719869 | H158: 0.9305582035 | I158: 0.06944179654 | J158: 62138304.33 | K158: 1165534.802 | L158: 612.7670585 | M158: 0.6793937127 | N158: 0.3206062873 | O158: 62138289.78 | P158: 1165535.795 | Q158: 808.4337457 | R158: 1.36968916 | S158: 0.2165952425 | T158: 0.1581345964 | U158: 25
G159: 67.09719869 | H159: 0.9301326102 | I159: 0.06986738977 | J159: 62663918.59 | K159: 1182239.594 | L159: 615.9325678 | M159: 0.6816802766 | N159: 0.3183197234 | O159: 62663904.26 | P159: 1182240.606 | Q159: 808.9108261 | R159: 1.364470474 | S159: 0.2194880952 | T159: 0.1608595418 | U159: 35
G160: 67.14719869 | H160: 0.9300899274 | I160: 0.06991007256 | J160: 62716572.86 | K160: 1183924.056 | L160: 616.2479897 | M160: 0.6819079538 | N160: 0.3180920462 | O160: 62716556.65 | P160: 1183925.176 | Q160: 808.9586492 | R160: 1.363952308 | S160: 0.2197793796 | T160: 0.1611342114 | U160: 25
G161: 67.64719869 | H161: 0.9296616645 | I161: 0.0703383355 | J161: 63244046.42 | K161: 1200910.64 | L161: 619.3911734 | M161: 0.6841768196 | N161: 0.3158231804 | O161: 63244029.63 | P161: 1200911.84 | Q161: 809.4371367 | R161: 1.358803219 | S161: 0.2227142904 | T161: 0.1639047416 | U161: 35
G162: 67.69719869 | H162: 0.9296186674 | I162: 0.07038133259 | J162: 63296886.8 | K162: 1202623.672 | L162: 619.7044185 | M162: 0.6844029437 | N162: 0.3155970563 | O162: 63296872.52 | P162: 1202624.672 | Q162: 809.4849991 | R162: 1.358291451 | S162: 0.2230101048 | T162: 0.1641842807 | U162: 26
G163: 68.19719869 | H163: 0.9291876676 | I163: 0.07081233238 | J163: 63826235.51 | K163: 1219896.8 | L163: 622.8255131 | M163: 0.6866544783 | N163: 0.3133455217 | O163: 63826219.89 | P163: 1219897.93 | Q163: 809.9648103 | R163: 1.353209943 | S163: 0.2259880147 | T163: 0.1670014441 | U163: 36
G164: 68.24719869 | H164: 0.929144421 | I164: 0.07085557898 | J164: 63879264.57 | K164: 1221638.63 | L164: 623.1365336 | M164: 0.6868787644 | N164: 0.3131212356 | O164: 63879248.64 | P164: 1221639.76 | Q164: 810.0128613 | R164: 1.352705119 | S164: 0.2262880026 | T164: 0.1672855372 | U164: 26
G165: 68.74719869 | H165: 0.9287105836 | I165: 0.07128941644 | J165: 64410503.74 | K165: 1239203.241 | L165: 626.2358075 | M165: 0.6891134831 | N165: 0.3108865169 | O165: 64410489.12 | P165: 1239204.313 | Q165: 810.493838 | R165: 1.347688888 | S165: 0.2293100941 | T165: 0.1701506158 | U165: 37
G166: 68.79719869 | H166: 0.9286670454 | I166: 0.07133295464 | J166: 64463722.58 | K166: 1240974.477 | L166: 626.5446619 | M166: 0.6893361288 | N166: 0.3106638712 | O166: 64463708.4 | P166: 1240975.498 | Q166: 810.5419899 | R166: 1.347190444 | S166: 0.2296145811 | T166: 0.1704395857 | U166: 27
G167: 69.29719869 | H167: 0.9282303337 | I167: 0.07176966629 | J167: 64996868.39 | K167: 1258835.356 | L167: 629.6223169 | M167: 0.6915542324 | N167: 0.3084457676 | O167: 64996854.6 | P167: 1258836.381 | Q167: 811.0241263 | R167: 1.342237948 | S167: 0.2326816375 | T167: 0.1733534936 | U167: 38
G168: 69.34719869 | H168: 0.9281865296 | I168: 0.07181347036 | J168: 65050279.01 | K168: 1260636.382 | L168: 629.9289964 | M168: 0.6917751239 | N168: 0.3082248761 | O168: 65050263.18 | P168: 1260637.537 | Q168: 811.0724445 | R168: 1.341746035 | S168: 0.2329905077 | T168: 0.1736472489 | U168: 27
G169: 69.84719869 | H169: 0.9277468699 | I169: 0.07225313007 | J169: 65585347.08 | K169: 1278798.515 | L169: 632.9852693 | M169: 0.6939769764 | N169: 0.3060230236 | O169: 65585330.86 | P169: 1278799.736 | Q169: 811.5556529 | R169: 1.336855402 | S169: 0.2361035755 | T169: 0.1766111541 | U169: 38
G170: 69.89719869 | H170: 0.9277027233 | I170: 0.07229727673 | J170: 65638950.12 | K170: 1280630.067 | L170: 633.2898658 | M170: 0.6941964509 | N170: 0.3058035491 | O170: 65638935.87 | P170: 1280631.122 | Q170: 811.6039802 | R170: 1.336369153 | S170: 0.2364173893 | T170: 0.1769102413 | U170: 28
G171: 70.39719869 | H171: 0.9272600346 | I171: 0.07273996544 | J171: 66175955.94 | K171: 1299098.535 | L171: 636.3249978 | M171: 0.6963824096 | N171: 0.3036175904 | O171: 66175940.5 | P171: 1299099.713 | Q171: 812.0881743 | R171: 1.331538565 | S171: 0.239577573 | T171: 0.179925373 | U171: 39
G172: 70.44719869 | H172: 0.9272156067 | I172: 0.07278439331 | J172: 66229753.87 | K172: 1300960.89 | L172: 636.6274668 | M172: 0.6966002007 | N172: 0.3033997993 | O172: 66229737.94 | P172: 1300962.085 | Q172: 812.136651 | R172: 1.331058483 | S172: 0.2398959837 | T172: 0.180229484 | U172: 28
G173: 70.94719869 | H173: 0.9267697726 | I173: 0.07323022738 | J173: 66768712.45 | K173: 1319740.966 | L173: 639.6417311 | M173: 0.6987707701 | N173: 0.3012292299 | O173: 66768697.66 | P173: 1319742.109 | Q173: 812.6216699 | R173: 1.326285833 | S173: 0.2431046529 | T173: 0.1832973307 | U173: 40
G174: 70.99719869 | H174: 0.9267250201 | I174: 0.07327497987 | J174: 66822706.35 | K174: 1321634.761 | L174: 639.9421311 | M174: 0.6989870677 | N174: 0.3010129323 | O174: 66822691.87 | P174: 1321635.863 | Q174: 812.6702109 | R174: 1.325811396 | S174: 0.2434280126 | T174: 0.1836068186 | U174: 29
G175: 71.49719869 | H175: 0.926275988 | I175: 0.07372401202 | J175: 67363633.5 | K175: 1340731.578 | L175: 642.9357358 | M175: 0.7011424507 | N175: 0.2988575493 | O175: 67363619.24 | P175: 1340732.695 | Q175: 813.1560408 | R175: 1.321095288 | S175: 0.2466861292 | T175: 0.1867284907 | U175: 41
G176: 71.54719869 | H176: 0.9262309358 | I176: 0.07376906416 | J176: 67417825.35 | K176: 1342657.232 | L176: 643.2340579 | M176: 0.7013571428 | N176: 0.2986428572 | O176: 67417809.15 | P176: 1342658.481 | Q176: 813.2047103 | R176: 1.320626653 | S176: 0.2470143262 | T176: 0.187043269 | U176: 29
G177: 72.04719869 | H177: 0.9257786156 | I177: 0.07422138437 | J177: 67960736.39 | K177: 1362076.123 | L177: 646.2072448 | M177: 0.7034976968 | N177: 0.2965023032 | O177: 67960719.55 | P177: 1362077.458 | Q177: 813.6912597 | R177: 1.315965383 | S177: 0.2503231292 | T177: 0.1902201475 | U177: 41
G178: 72.09719869 | H178: 0.9257331833 | I178: 0.07426681671 | J178: 68015126.78 | K178: 1364034.404 | L178: 646.5035826 | M178: 0.7037111181 | N178: 0.2962888819 | O178: 68015111.9 | P178: 1364035.569 | Q178: 813.7399002 | R178: 1.315501716 | S178: 0.2506567788 | T178: 0.1905408224 | U178: 30
G179: 72.59719869 | H179: 0.9252774765 | I179: 0.07472252345 | J179: 68560036.89 | K179: 1383780.805 | L179: 649.4565984 | M179: 0.7058371992 | N179: 0.2941628008 | O179: 68560020.53 | P179: 1383782.121 | Q179: 814.2270762 | R179: 1.310893613 | S179: 0.2540175823 | T179: 0.1937743686 | U179: 42
G180: 72.64719869 | H180: 0.9252317259 | I180: 0.07476827409 | J180: 68614628.28 | K180: 1385772.031 | L180: 649.7509068 | M180: 0.7060490845 | N180: 0.2939509155 | O180: 68614611.63 | P180: 1385773.352 | Q180: 814.2758276 | R180: 1.310435416 | S180: 0.2543563233 | T180: 0.1941006173 | U180: 30
G181: 73.14719869 | H181: 0.9247724964 | I181: 0.07522750362 | J181: 69161552.17 | K181: 1405851.573 | L181: 652.6840317 | M181: 0.7081611972 | N181: 0.2918388028 | O181: 69161536.16 | P181: 1405852.879 | Q181: 814.7634621 | R181: 1.30587852 | S181: 0.2577707381 | T181: 0.197392586 | U181: 43
G182: 73.19719869 | H182: 0.9247263806 | I182: 0.0752736194 | J182: 69216345.6 | K182: 1407876.416 | L182: 652.9763707 | M182: 0.7083717367 | N182: 0.2916282633 | O182: 69216330.16 | P182: 1407877.659 | Q182: 814.812238 | R182: 1.305425291 | S182: 0.2581149665 | T182: 0.1977248091 | U182: 31
G183: 73.24719869 | H183: 0.9246802483 | I183: 0.07531975173 | J183: 69271157.69 | K183: 1409904.289 | L183: 653.2685153 | M183: 0.70858212 | N183: 0.29141788 | O183: 69271142.09 | P183: 1409905.546 | Q183: 814.8610333 | R183: 1.304972595 | S183: 0.2584596105 | T183: 0.1980575005 | U183: 31
G184: 73.29719869 | H184: 0.9246340831 | I184: 0.07536591688 | J184: 69325988.24 | K184: 1411935.248 | L184: 653.5604814 | M184: 0.7087923789 | N184: 0.2912076211 | O184: 69325972.48 | P184: 1411936.52 | Q184: 814.9098324 | R184: 1.304520351 | S184: 0.2588047545 | T184: 0.1983907374 | U184: 31
G185: 73.34719869 | H185: 0.924587885 | I185: 0.07541211498 | J185: 69380837.27 | K185: 1413969.297 | L185: 653.8522692 | M185: 0.7090025137 | N185: 0.2909974863 | O185: 69380821.34 | P185: 1413970.584 | Q185: 814.9586351 | R185: 1.304068557 | S185: 0.2591504 | T185: 0.1987245215 | U185: 31
G186: 73.39719869 | H186: 0.9245416539 | I186: 0.07545834614 | J186: 69435704.79 | K186: 1416006.442 | L186: 654.1438789 | M186: 0.7092125247 | N186: 0.2907874753 | O186: 69435688.7 | P186: 1416007.743 | Q186: 815.0074414 | R186: 1.303617212 | S186: 0.2594965484 | T186: 0.1990588541 | U186: 31
G187: 73.44719869 | H187: 0.9244953895 | I187: 0.07550461045 | J187: 69490590.82 | K187: 1418046.686 | L187: 654.4353106 | M187: 0.7094224123 | N187: 0.2905775877 | O187: 69490574.56 | P187: 1418048.002 | Q187: 815.0562511 | R187: 1.303166313 | S187: 0.2598432007 | T187: 0.1993937367 | U187: 31
G188: 73.49719869 | H188: 0.924449092 | I188: 0.075550908 | J188: 69545495.36 | K188: 1420090.035 | L188: 654.7265648 | M188: 0.7096321767 | N188: 0.2903678233 | O188: 69545478.93 | P188: 1420091.367 | Q188: 815.1050642 | R188: 1.302715861 | S188: 0.2601903583 | T188: 0.1997291705 | U188: 31
G189: 73.54719869 | H189: 0.9244027611 | I189: 0.07559723888 | J189: 69600418.43 | K189: 1422136.493 | L189: 655.0176414 | M189: 0.7098418182 | N189: 0.2901581818 | O189: 69600401.83 | P189: 1422137.84 | Q189: 815.1538805 | R189: 1.302265853 | S189: 0.2605380224 | T189: 0.200065157 | U189: 31
G190: 73.59719869 | H190: 0.9243563968 | I190: 0.07564360319 | J190: 69655360.04 | K190: 1424186.065 | L190: 655.3085407 | M190: 0.7100513371 | N190: 0.2899486629 | O190: 69655343.27 | P190: 1424187.428 | Q190: 815.2027001 | R190: 1.301816289 | S190: 0.2608861942 | T190: 0.2004016975 | U190: 31
G191: 73.64719869 | H191: 0.924309999 | I191: 0.07569000102 | J191: 69710320.2 | K191: 1426238.756 | L191: 655.599263 | M191: 0.7102607337 | N191: 0.2897392663 | O191: 69710303.26 | P191: 1426240.135 | Q191: 815.2515228 | R191: 1.301367167 | S191: 0.261234875 | T191: 0.2007387935 | U191: 31
G192: 73.69719869 | H192: 0.9242635675 | I192: 0.07573643245 | J192: 69765298.93 | K192: 1428294.571 | L192: 655.8898085 | M192: 0.7104700084 | N192: 0.2895299916 | O192: 69765281.81 | P192: 1428295.966 | Q192: 815.3003486 | R192: 1.300918486 | S192: 0.2615840661 | T192: 0.2010764463 | U192: 31
G193: 73.74719869 | H193: 0.9242171024 | I193: 0.0757828976 | J193: 69820296.24 | K193: 1430353.514 | L193: 656.1801773 | M193: 0.7106791613 | N193: 0.2893208387 | O193: 69820278.94 | P193: 1430354.925 | Q193: 815.3491773 | R193: 1.300470244 | S193: 0.2619337686 | T193: 0.2014146573 | U193: 31
G194: 73.79719869 | H194: 0.9241706035 | I194: 0.07582939655 | J194: 69875312.13 | K194: 1432415.59 | L194: 656.4703696 | M194: 0.7108881929 | N194: 0.2891118071 | O194: 69875294.66 | P194: 1432417.017 | Q194: 815.3980089 | R194: 1.300022441 | S194: 0.2622839838 | T194: 0.201753428 | U194: 31
G195: 73.84719869 | H195: 0.924124034 | I195: 0.07587596598 | J195: 69930346.18 | K195: 1434480.916 | L195: 656.7604206 | M195: 0.7110972547 | N195: 0.2889027453 | O195: 69930331.44 | P195: 1434482.122 | Q195: 815.4467679 | R195: 1.299574746 | S195: 0.2626349774 | T195: 0.202093014 | U195: 32
G196: 73.89719869 | H196: 0.9240774667 | I196: 0.07592253335 | J196: 69985399.28 | K196: 1436549.274 | L196: 657.0502612 | M196: 0.7113060463 | N196: 0.2886939537 | O196: 69985384.4 | P196: 1436550.494 | Q196: 815.4956041 | R196: 1.299127811 | S196: 0.262986226 | T196: 0.2024329121 | U196: 32
G197: 73.94719869 | H197: 0.9240308653 | I197: 0.07596913466 | J197: 70040471.02 | K197: 1438620.779 | L197: 657.3399258 | M197: 0.7115147169 | N197: 0.2884852831 | O197: 70040455.98 | P197: 1438622.013 | Q197: 815.5444431 | R197: 1.298681311 | S197: 0.2633379902 | T197: 0.2027733732 | U197: 32
G198: 73.99719869 | H198: 0.9239842298 | I198: 0.07601577016 | J198: 70095561.4 | K198: 1440695.436 | L198: 657.6294148 | M198: 0.7117232672 | N198: 0.2882767328 | O198: 70095546.2 | P198: 1440696.685 | Q198: 815.5932846 | R198: 1.298235244 | S198: 0.2636902723 | T198: 0.2031143997 | U198: 32
G199: 74.04719869 | H199: 0.9239375601 | I199: 0.07606243994 | J199: 70150670.42 | K199: 1442773.25 | L199: 657.9187284 | M199: 0.7119316977 | N199: 0.2880683023 | O199: 70150655.06 | P199: 1442774.513 | Q199: 815.6421287 | R199: 1.29778961 | S199: 0.2640430736 | T199: 0.2034559929 | U199: 32
G200: 74.09719869 | H200: 0.9238908559 | I200: 0.07610914411 | J200: 70205798.11 | K200: 1444854.226 | L200: 658.2078668 | M200: 0.7121400086 | N200: 0.2878599914 | O200: 70205782.59 | P200: 1444855.504 | Q200: 815.6909751 | R200: 1.297344405 | S200: 0.2643963954 | T200: 0.2037981544 | U200: 32
G201: 74.14719869 | H201: 0.9238441172 | I201: 0.07615588276 | J201: 70260944.48 | K201: 1446938.368 | L201: 658.4968302 | M201: 0.7123482001 | N201: 0.2876517999 | O201: 70260928.8 | P201: 1446939.661 | Q201: 815.7398238 | R201: 1.29689963 | S201: 0.264750239 | T201: 0.2041408855 | U201: 32
... 638 more rows

Sheet Database
C1: Property database
J2: Source: Properties of Gases and Liquids, 4th Ed. R. C. Reid, J. M. Prausnitz, and B. E. Poling, McGraw-Hill, New York, 1987. AND from Properties of Gases and Liquids, 3rd Ed., R. C. Reid, J. M. Prausnitz, and T. K. Sherwood, McGraw-Hill, New York, 1977.
A3: Solvents | C3: MW | D3: Tc [K] | E3: Pc [MPa] | F3: w | H3: Vc [cm3/mol] | I3: Tb [K] | J3: Notes
A4: Carbon Dioxide | B4: CO2 | C4: 44.01 | D4: 304.1 | E4: 7380000 | F4: 0.225 | H4: 94 | I4: 194.7
A5: Ethane | B5: C2H6 | C5: 30.07 | D5: 305.4 | E5: 4880000 | F5: 0.098 | H5: 148 | I5: 184.5
A6: Propane | B6: C3H8 | C6: 44.094 | D6: 369.8 | E6: 4250000 | F6: 0.153 | H6: 203 | I6: 231.1
A7: Water | B7: H2O | C7: 18.015 | D7: 647.3 | E7: 22120000 | F7: 0.344 | H7: 57.1 | I7: 373.2
A8: Toluene | B8: C7H8 | C8: 92.141 | D8: 591.7 | E8: 4112780 | F8: 0.257 | H8: 316 | I8: 383.8
A9: m-Xylene | B9: C8H10 | C9: 106.168 | D9: 617 | E9: 3545500 | F9: 0.331 | H9: 376 | I9: 412.3
A10: Ammonia | B10: NH3 | C10: 17.031 | D10: 405.6 | E10: 11274690 | F10: 0.25 | H10: 72.5 | I10: 239.7
A13: Common co-solvents
A14: Methanol | B14: CH4O | C14: 32.042 | D14: 512.6 | E14: 8090000 | F14: 0.556 | H14: 118 | I14: 337.8
A15: Acetone | B15: C3H6O | C15: 58.08 | D15: 508.1 | E15: 4700000 | F15: 0.304 | H15: 209 | I15: 329.4
A16: Dimethyl ether | B16: C2H6O | C16: 46.069 | D16: 400 | E16: 5240000 | F16: 0.192 | H16: 178 | I16: 248.3
A17: Ethanol | B17: C2H6O | C17: 46.069 | D17: 516.2 | E17: 6140000 | F17: 0.635 | H17: 167 | I17: 351.5
A18: Isopropyl alcohol | B18: C3H8O | C18: 60.096 | D18: 508.3 | E18: 4760000 | F18: 0.665 | H18: 220 | I18: 355.4
A20: Solutes | C20: MW | D20: Tc [K] | F20: w | H20: Vc [cm3/mol] | I20: Tb [K]
A21: Methane | B21: CH4 | C21: 16.043 | D21: 190.6 | E21: 4599020 | F21: 0.008 | H21: 99 | I21: 111.7
A22: Benzene | B22: C6H6 | C22: 78.114 | D22: 562.2 | E22: 4890000 | F22: 0.212 | H22: 259 | I22: 353.3
A23: n-Hexane | B23: C6H14 | C23: 86.178 | D23: 507.5 | E23: 3010000 | F23: 0.299 | H23: 370 | I23: 341.9
A24: Naphthalene | B24: C10H8 | C24: 128.174 | D24: 748.4 | E24: 4050000 | F24: 0.302 | H24: 410 | I24: 491.1
A25: n-Octane | B25: C8H18 | C25: 114.232 | D25: 568.8 | E25: 2490000 | F25: 0.398 | H25: 492 | I25: 398.8
A26: n-Hexadecane | B26: C16H34 | C26: 224.432 | D26: 717 | E26: 1420000 | F26: 0.742 | H26: 931.5 | I26: 560 | J26: Vc estimated with Joback Method
A27: isoprene (1,3-butadiene, 2-methyl) | B27: C5H8 | C27: 68.119 | D27: 484 | E27: 3850000 | F27: 0.164 | H27: 276 | I27: 307.2 | J27: Properties from Reid et al. (1977)
A28: Maleic Anhydride | B28: C4H2O3 | C28: 98.0582 | D28: 719.4 | E28: 5990000 | F28: 0.443 | H28: 225.5 | I28: 472.8
A29: 4-methyl-4-cyclohexene-1,2-dicarboxylic anhydride | B29: C9H10O3 | C29: 166.1772 | D29: 849.1 | E29: 3610000 | F29: 0.588 | H29: 450.5 | I29: 598.3
A30: Ethyl Vinyl Ether | B30: C4H8O | C30: 72.10572 | D30: 475.1 | E30: 4020000 | F30: 0.265 | H30: 258.5 | I30: 308.8
A31: Biphenyl | B31: C12H10 | C31: 154.211 | D31: 773 | E31: 3380000 | F31: 0.404 | H31: 497 | I31: 528.23
A32: Others | C32: MW | D32: Tc [K] | F32: w | H32: Vc [cm3/mol] | I32: Tb [K]
A33: Hydrogen | B33: H2 | C33: 2.016 | D33: 33.2 | E33: 1296640 | F33: -0.22 | H33: 65 | I33: 20.4
A34: Hydrogen - Effective Critical Constants | B34: H2 | C34: 2.016 | D34: 43.6 | E34: 2050000 | F34: 0 | H34: 51.5 | I34: 20.4
A35: Nitrogen | B35: N2 | C35: 28.013 | D35: 126.2 | E35: 3393550 | F35: 0.04 | H35: 89.5 | I35: 77.4
A36: Oxygen | B36: O2 | C36: 31.999 | D36: 154.6 | E36: 5044740 | F36: 0.021 | H36: 73.4 | I36: 90.2
A37: Carbon Monoxide | B37: CO | C37: 28.01 | D37: 132.9 | E37: 3494850 | F37: 0.295 | H37: 93.1 | I37: 81.7

Sheet Data fitting
D1: Vapor-Liquid Equilibrium - Constant Temperature with the Peng-Robinson Equation of State
I2: For Educational Use Only!
F3: Report errors to R. L. Smith; Email: smith@scf.che.tohoku.ac.jp
A4: =COLUMN() -> 1 | B4: =COLUMN() -> 2 | C4: =COLUMN() -> 3 | D4: =COLUMN() -> 4 | E4: =COLUMN() -> 5 | F4: =COLUMN() -> 6 | G4: =COLUMN() -> 7 | H4: =COLUMN() -> 8 | I4: =COLUMN() -> 9 | J4: =COLUMN() -> 10 | K4: =COLUMN() -> 11 | L4: =COLUMN() -> 12 | M4: =COLUMN() -> 13 | N4: =COLUMN() -> 14 | O4: =COLUMN() -> 15 | P4: =COLUMN() -> 16 | Q4: =COLUMN() -> 17 | R4: =COLUMN() -> 18 | S4: =COLUMN() -> 19 | T4: =COLUMN() -> 20 | U4: =COLUMN() -> 21 | V4: =COLUMN() -> 22 | W4: =COLUMN() -> 23
D5: Pure component properties | N5: Binary Interaction
N6: Parameters
B7: No. | C7: Substance Name | D7: Formula | E7: MW | F7: Tc / K | G7: Pc/ Pa | H7: Acentric factor | N7: amix term k(i,j) | O7: j = 1 | P7: 2 | R7: bmix term l(i,j) | S7: j=1 | T7: 2
B8: 1 | C8: Carbon Dioxide | D8: CO2 | E8: 44.01 | F8: 304.1 | G8: 7380000 | H8: 0.225 | I8: solvent | N8: i = 1 | O8: 0 | P8: =H17 -> 0.07667342008 | R8: i=1 | S8: 0 | T8: =H18 -> -0.06252491907
B9: 2 | C9: Biphenyl | D9: C12H10 | E9: 154.211 | F9: 801 | G9: 3380000 | H9: 0.404 | I9: liquid solute | N9: 2 | O9: =P8 -> 0.07667342008 | P9: 0 | R9: 2 | S9: =T8 -> -0.06252491907 | T9: 0
G12: T [C] | H12: P [MPa] | I12: K1, initial | J12: K2, initial | K12: =VLE_PREoS_14Cells_heading() -> y(1) [-] | L12: y(2) [-] | M12: fv(1) [Pa] | N12: fv(2) [Pa] | O12: rhoV [kg/m3] | P12: x(1) [-] | Q12: x(2) [-] | R12: fL(1) [Pa] | S12: fL(2) [Pa] | T12: rhoL [kg/m3] | U12: K(1) [-] | V12: K(2) [-] | W12: K(2)/K(1) [-] | X12: No. Iter.
C13: Input Field | G13: 490 | H13: 2.33 | I13: 50 | J13: 0.001 | K13: =VLE_PREoS_14Cells_binary_Mwi_Tci_Pci_wi_kijm_lijm_KiInitial_TinC_PinPa($E$8:$E$9,$F$8:$F$9,$G$8:$G$9,$H$8:$H$9,$O$8:$P$9,$S$8:$T$9,I13:J13,G13,H13*1000000) -> 0.0002305725422 | L13: 0.9997694275 | M13: 915.078518 | N13: 1646333.041 | O13: 98.02028866 | P13: 3.305850787e-05 | Q13: 0.9999669415 | R13: 915.0403063 | S13: 1646333.062 | T13: 470.3485616 | U13: 6.974680861 | V13: 0.9998024794 | W13: 0.1433474161 | X13: 6
C14: Calc Field
C15: Solver Field | M15: How to use and input a vector function:
C16: Vector function | M16: 1. Select two or more cells -- for VLE_PREoS_14cells_binary... select 14 cells
C17: Note Field | G17: amix term: k(1,2) | H17: 0.07667342008 | I17: Values manipulated by Solver | M17: 2. Type equal sign = and function name AND arguments that can be selected with the mouse WITHOUT hitting Enter or Return
C18: Optional/Disregard | G18: bmix term l(1,2) | H18: -0.06252491907 | M18: 3. Press Cntl-Shift-Enter at the same time
G19: SSQ (y2calc-y2exp)^2: | H19: =SUMSQ(J25:J34) -> 5.696208397e-06 | I19: Objective function for Solver | M19: 4. The F4 key on PC/Windows is useful to make some arguments fixed position, i.e. E$8$:E$9$ for Mwi. Selecting a cell reference E8 and hitting F4 changes the reference to an absolute reference, E$8$
M20: Vector functions can be moved, changed or extended just the same as single cell functions. HOWEVER, each time,
D21: Ref: [1] | M21: Step 3 must be repeated. The below vector function outputs 14 values as below: {=VLE_PREoS_14Cells_binary_Mwi_Tci_Pci_wi_kijm_lijm_KiInitial_TinC_PinPa($E$8:$E$9,$F$8:$F$9,$G$8:$G$9,$H$8:$H$9,$O$8:$P$9,$S$8:$T$9,I25:J25,D25,G25*1000000)}
D22: [1] G. Leeke, R. Santos, B. Al-Duri, J. Seville, C. Smith, A.B. Holmes, Solubilities of 4-phenyltoluene, phenylboric acid, biphenyl, and iodobenzene in carbon dioxide from measurements of the relative permittivity, Journal of Chemical and Engineering Data 50 (2005) 1370-1374.
E23: Experimental data | N23: =COLUMN()-13 -> 1 | O23: =COLUMN()-13 -> 2 | P23: 3 | Q23: 4 | R23: 5 | S23: 6 | T23: 7 | U23: 8 | V23: 9 | W23: 10 | X23: 11 | Y23: 12 | Z23: 13 | AA23: 14
D24: T [C] | E24: P [bar] | G24: y2, exp | I24: P [MPa] | J24: Dy2, calc | L24: K1,initial | M24: K2, initial | N24: =VLE_PREoS_14Cells_heading() -> y(1) [-] | O24: y(2) [-] | P24: fv(1) [Pa] | Q24: fv(2) [Pa] | R24: rhoV [kg/m3] | S24: x(1) [-] | T24: x(2) [-] | U24: fL(1) [Pa] | V24: fL(2) [Pa] | W24: rhoL [kg/m3] | X24: K(1) [-] | Y24: K(2) [-] | Z24: K(2)/K(1) [-] | AA24: No. Iter.
D25: 80 | E25: 102.2 | G25: 0.0012 | I25: =E25/10 -> 10.22 | J25: =O25-G25 -> -0.0005820320034 | L25: 3 | M25: 0.001 | N25: =VLE_PREoS_14Cells_binary_Mwi_Tci_Pci_wi_kijm_lijm_KiInitial_TinC_PinPa($E$8:$E$9,$F$8:$F$9,$G$8:$G$9,$H$8:$H$9,$O$8:$P$9,$S$8:$T$9,L25:M25,D25,I25*1000000) -> 0.999382032 | O25: 0.0006179679966 | P25: 7300555.532 | Q25: 151.3200604 | R25: 233.3732889 | S25: 0.2592749256 | T25: 0.7407250744 | U25: 7300982.712 | V25: 151.316961 | W25: 903.1097675 | X25: 3.854526348 | Y25: 0.0008342744399 | Z25: 0.0002164401964 | AA25: 13 | AC25: 1 | AD25: 2 | AE25: 3 | AF25: 4 | AG25: 5 | AH25: 6 | AI25: 7 | AJ25: 8 | AK25: 9 | AL25: 10 | AM25: 11 | AN25: 12 | AO25: 13 | AP25: 14
D26: 80 | E26: 150.7 | G26: 0.0035 | I26: 15.07 | J26: 0.0001170191758 | L26: 1.5 | M26: 0.01 | N26: =VLE_PREoS_14Cells_binary_Mwi_Tci_Pci_wi_kijm_lijm_KiInitial_TinC_PinPa($E$8:$E$9,$F$8:$F$9,$G$8:$G$9,$H$8:$H$9,$O$8:$P$9,$S$8:$T$9,L26:M26,D26,I26*1000000) -> 0.9963829808 | O26: 0.003617019176 | P26: 9188173.347 | Q26: 187.7531863 | R26: 427.5597974 | S26: 0.3667085486 | T26: 0.6332914514 | U26: 9188998.129 | V26: 187.7434256 | W26: 901.881398 | X26: 2.717097774 | Y26: 0.005711460604 | Z26: 0.002102044564 | AA26: 22 | AC26: y(1) [-] | AD26: y(2) [-] | AE26: fv(1) [Pa] | AF26: fv(2) [Pa] | AG26: rhoV [kg/m3] | AH26: x(1) [-] | AI26: x(2) [-] | AJ26: fL(1) [Pa] | AK26: fL(2) [Pa] | AL26: rhoL [kg/m3] | AM26: K(1) [-] | AN26: K(2) [-] | AO26: K(2)/K(1) [-] | AP26: No. Iter.
D27: 80 | E27: 200.4 | G27: 0.0117 | I27: 20.04 | J27: 0.0006808328782 | L27: 2 | M27: 0.01 | N27: =VLE_PREoS_14Cells_binary_Mwi_Tci_Pci_wi_kijm_lijm_KiInitial_TinC_PinPa($E$8:$E$9,$F$8:$F$9,$G$8:$G$9,$H$8:$H$9,$O$8:$P$9,$S$8:$T$9,L27:M27,D27,I27*1000000) -> 0.9876191671 | O27: 0.01238083288 | P27: 10630578.46 | Q27: 240.1887517 | R27: 606.5245112 | S27: 0.4476518711 | T27: 0.5523481289 | U27: 10631513.88 | V27: 240.1716146 | W27: 902.9854839 | X27: 2.206221466 | Y27: 0.02241490869 | Z27: 0.01015986339 | AA27: 22
D28: 80 | E28: 251.1 | G28: 0.0246 | I28: 25.11 | J28: 0.0001231316777 | L28: 1.1 | M28: 0.5 | N28: =VLE_PREoS_14Cells_binary_Mwi_Tci_Pci_wi_kijm_lijm_KiInitial_TinC_PinPa($E$8:$E$9,$F$8:$F$9,$G$8:$G$9,$H$8:$H$9,$O$8:$P$9,$S$8:$T$9,L28:M28,D28,I28*1000000) -> 0.9752768683 | O28: 0.02472313168 | P28: 11940493.96 | Q28: 313.0849343 | R28: 723.6607628 | S28: 0.5112031852 | T28: 0.4887968148 | U28: 11941429.71 | V28: 313.0592392 | W28: 905.8032031 | X28: 1.907806713 | Y28: 0.05057956789 | Z28: 0.02651189324 | AA28: 46
D29: 80 | E29: 293.5 | G29: 0.0364 | I29: 29.35 | J29: -0.0002661490692 | L29: 2 | M29: 0.01 | N29: =VLE_PREoS_14Cells_binary_Mwi_Tci_Pci_wi_kijm_lijm_KiInitial_TinC_PinPa($E$8:$E$9,$F$8:$F$9,$G$8:$G$9,$H$8:$H$9,$O$8:$P$9,$S$8:$T$9,L29:M29,D29,I29*1000000) -> 0.9638661491 | O29: 0.03613385093 | P29: 13012023.02 | Q29: 392.9874809 | R29: 788.9477956 | S29: 0.555785846 | T29: 0.444214154 | U29: 13011003.1 | V29: 393.0263636 | W29: 909.1032276 | X29: 1.734240186 | Y29: 0.08134331292 | Z29: 0.04690429478 | AA29: 34 | AC29: 1 | AD29: y(1) [-]
D30: 110 | E30: 101.8 | G30: 0.0016 | I30: 10.18 | J30: -0.0005781647577 | L30: 2 | M30: 0.01 | N30: =VLE_PREoS_14Cells_binary_Mwi_Tci_Pci_wi_kijm_lijm_KiInitial_TinC_PinPa($E$8:$E$9,$F$8:$F$9,$G$8:$G$9,$H$8:$H$9,$O$8:$P$9,$S$8:$T$9,L30:M30,D30,I30*1000000) -> 0.9989781648 | O30: 0.001021835242 | P30: 7987610.793 | Q30: 742.8190264 | R30: 184.1916123 | S30: 0.2166682481 | T30: 0.7833317519 | U30: 7988128.338 | V30: 742.8057128 | W30: 888.5942952 | X30: 4.610634801 | Y30: 0.001304473156 | Z30: 0.0002829270181 | AA30: 12 | AC30: 2 | AD30: y(2) [-]
D31: 110 | E31: 151 | G31: 0.0039 | I31: 15.1 | J31: -0.0009932162662 | L31: 2 | M31: 0.01 | N31: =VLE_PREoS_14Cells_binary_Mwi_Tci_Pci_wi_kijm_lijm_KiInitial_TinC_PinPa($E$8:$E$9,$F$8:$F$9,$G$8:$G$9,$H$8:$H$9,$O$8:$P$9,$S$8:$T$9,L31:M31,D31,I31*1000000) -> 0.9970932163 | O31: 0.002906783734 | P31: 10624504.29 | Q31: 902.0495031 | R31: 308.6279124 | S31: 0.3166584641 | T31: 0.6833415359 | U31: 10625460.17 | V31: 902.0118905 | W31: 885.6933725 | X31: 3.148796983 | Y31: 0.004253778793 | Z31: 0.001350921897 | AA31: 15 | AC31: 3 | AD31: fv(1) [Pa]
D32: 110 | E32: 200.6 | G32: 0.0091 | I32: 20.06 | J32: -0.001458149922 | L32: 2 | M32: 0.01 | N32: =VLE_PREoS_14Cells_binary_Mwi_Tci_Pci_wi_kijm_lijm_KiInitial_TinC_PinPa($E$8:$E$9,$F$8:$F$9,$G$8:$G$9,$H$8:$H$9,$O$8:$P$9,$S$8:$T$9,L32:M32,D32,I32*1000000) -> 0.9923581499 | O32: 0.007641850078 | P32: 12798738.71 | Q32: 1113.277389 | R32: 443.5815667 | S32: 0.4074889404 | T32: 0.5925110596 | U32: 12799839.43 | V32: 1113.211526 | W32: 884.0279362 | X32: 2.435300818 | Y32: 0.01289739652 | Z32: 0.005296017816 | AA32: 18 | AC32: 4 | AD32: fv(2) [Pa]
D33: 110 | E33: 250.8 | G33: 0.0172 | I33: 25.08 | J33: -0.0008782965167 | L33: 2 | M33: 0.01 | N33: =VLE_PREoS_14Cells_binary_Mwi_Tci_Pci_wi_kijm_lijm_KiInitial_TinC_PinPa($E$8:$E$9,$F$8:$F$9,$G$8:$G$9,$H$8:$H$9,$O$8:$P$9,$S$8:$T$9,L33:M33,D33,I33*1000000) -> 0.9836782965 | O33: 0.01632170348 | P33: 14727490.78 | Q33: 1394.369588 | R33: 567.1717918 | S33: 0.4885920096 | T33: 0.5114079904 | U33: 14728868.19 | V33: 1394.249301 | W33: 883.6696 | X33: 2.013291821 | Y33: 0.0319152297 | Z33: 0.01585226214 | AA33: 15 | AC33: 5 | AD33: rhoV [kg/m3]
D34: 110 | E34: 295.4 | G34: 0.0265 | I34: 29.54 | J34: 0.0007588573684 | L34: 1.7 | M34: 0.05 | N34: =VLE_PREoS_14Cells_binary_Mwi_Tci_Pci_wi_kijm_lijm_KiInitial_TinC_PinPa($E$8:$E$9,$F$8:$F$9,$G$8:$G$9,$H$8:$H$9,$O$8:$P$9,$S$8:$T$9,L34:M34,D34,I34*1000000) -> 0.9727411426 | O34: 0.02725885737 | P34: 16336886.4 | Q34: 1715.845285 | R34: 657.2026946 | S34: 0.5534624474 | T34: 0.4465375526 | U34: 16338207.83 | V34: 1715.674655 | W34: 884.329149 | X34: 1.757555815 | Y34: 0.06104493834 | Z34: 0.03473285903 | AA34: 23 | AC34: 6 | AD34: x(1) [-]
AC35: 7 | AD35: x(2) [-]
D36: T [C] | E36: P {MPa] | F36: x2 | G36: y2 | H36: K1 | I36: P [MPa] | J36: Dx2, calc | K36: Dy2, calc | L36: K1,initial | M36: K2, initial | N36: =VLE_PREoS_14Cells_heading() -> y(1) [-] | O36: y(2) [-] | P36: fv(1) [Pa] | Q36: fv(2) [Pa] | R36: rhoV [kg/m3] | S36: x(1) [-] | T36: x(2) [-] | U36: fL(1) [Pa] | V36: fL(2) [Pa] | W36: rhoL [kg/m3] | X36: K(1) [-] | Y36: K(2) [-] | Z36: K(2)/K(1) [-] | AA36: No. Iter. | AC36: 8 | AD36: fL(1) [Pa]
D37: 100 | E37: 1.01325 | F37: 0.9643 | G37: 0.0008 | H37: 27.99 | I37: =E37 -> 1.01325 | J37: =T37-F37 -> 0.01353119385 | K37: =O37-G37 -> -0.0003788232641 | L37: 27.99 | M37: 0.001 | N37: =VLE_PREoS_14Cells_binary_Mwi_Tci_Pci_wi_kijm_lijm_KiInitial_TinC_PinPa($E$8:$E$9,$F$8:$F$9,$G$8:$G$9,$H$8:$H$9,$O$8:$P$9,$S$8:$T$9,L37:M37,D37,I37*1000000) -> 0.9995788233 | O37: 0.0004211767359 | P37: 985958.3257 | Q37: 324.4622054 | R37: 14.78831224 | S37: 0.02216880615 | T37: 0.9778311938 | U37: 986039.0831 | V37: 324.4616021 | W37: 900.8479122 | X37: 45.08942955 | Y37: 0.0004307254039 | Z37: 9.552691355e-06 | AA37: 4 | AC37: 9 | AD37: fL(2) [Pa]
D38: 100 | E38: 2.0265 | F38: 0.9286 | G38: 0.0005 | H38: 14 | I38: =E38 -> 2.0265 | J38: =T38-F38 -> 0.02683727328 | K38: =O38-G38 -> -0.0002122137445 | L38: 14 | M38: 0.01 | N38: =VLE_PREoS_14Cells_binary_Mwi_Tci_Pci_wi_kijm_lijm_KiInitial_TinC_PinPa($E$8:$E$9,$F$8:$F$9,$G$8:$G$9,$H$8:$H$9,$O$8:$P$9,$S$8:$T$9,L38:M38,D38,I38*1000000) -> 0.9997122137 | O38: 0.0002877862555 | P38: 1919835.836 | Q38: 335.8251666 | R38: 30.40920404 | S38: 0.04456272672 | T38: 0.9554372733 | U38: 1919949.781 | V38: 335.8242367 | W38: 899.9544893 | X38: 22.43382054 | Y38: 0.0003012089476 | Z38: 1.342655599e-05 | AA38: 5 | AC38: 10 | AD38: rhoL [kg/m3]
D39: 100 | E39: 3.03975 | F39: 0.8931 | G39: 0.0004 | H39: 9.351 | I39: 3.03975 | J39: 0.03975081957 | K39: -0.0001365386037 | L39: 9.351 | M39: 0.01 | N39: =VLE_PREoS_14Cells_binary_Mwi_Tci_Pci_wi_kijm_lijm_KiInitial_TinC_PinPa($E$8:$E$9,$F$8:$F$9,$G$8:$G$9,$H$8:$H$9,$O$8:$P$9,$S$8:$T$9,L39:M39,D39,I39*1000000) -> 0.9997365386 | O39: 0.0002634613963 | P39: 2803378.876 | Q39: 347.7439565 | R39: 46.94853106 | S39: 0.06714918043 | T39: 0.9328508196 | U39: 2803491.544 | V39: 347.7429503 | W39: 899.0739739 | X39: 14.888291 | Y39: 0.0002824260758 | Z39: 1.89696773e-05 | AA39: 6 | AC39: 11 | AD39: K(1) [-]
D40: 100 | E40: 4.053 | F40: 0.8578 | G40: 0.0003 | H40: 7.03 | I40: 4.053 | J40: -0.2015984048 | K40: 0.65584388 | L40: 7.03 | M40: 0.5 | N40: =VLE_PREoS_14Cells_binary_Mwi_Tci_Pci_wi_kijm_lijm_KiInitial_TinC_PinPa($E$8:$E$9,$F$8:$F$9,$G$8:$G$9,$H$8:$H$9,$O$8:$P$9,$S$8:$T$9,L40:M40,D40,I40*1000000) -> 0.34385612 | O40: 0.65614388 | P40: 8432507.656 | Q40: 298.939117 | R40: 878.2882054 | S40: 0.3437984048 | T40: 0.6562015952 | U40: 8431954.847 | V40: 298.9493863 | W40: 878.2936732 | X40: 1.000167875 | Y40: 0.9999120465 | Z40: 0.9997442143 | AA40: 19 | AC40: 12 | AD40: K(2) [-]
D41: 100 | E41: 5.06625 | F41: 0.8227 | G41: 0.0003 | H41: 5.638 | I41: 5.06625 | J41: 0.06452751751 | K41: 2.482897401e-06 | L41: 5.638 | M41: 0.01 | N41: =VLE_PREoS_14Cells_binary_Mwi_Tci_Pci_wi_kijm_lijm_KiInitial_TinC_PinPa($E$8:$E$9,$F$8:$F$9,$G$8:$G$9,$H$8:$H$9,$O$8:$P$9,$S$8:$T$9,L41:M41,D41,I41*1000000) -> 0.9996975171 | O41: 0.0003024828974 | P41: 4427615.362 | Q41: 373.4245021 | R41: 83.10854668 | S41: 0.1127724825 | T41: 0.8872275175 | U41: 4428033.163 | V41: 373.4200224 | W41: 897.363467 | X41: 8.864729188 | Y41: 0.0003409304732 | Z41: 3.845920907e-05 | AA41: 7 | AC41: 13 | AD41: K(2)/K(1) [-]
D42: 150 | E42: 1.01325 | F42: 0.971 | G42: 0.007 | H42: 34.24 | I42: 1.01325 | J42: 0.01040044861 | K42: -0.003385090097 | L42: 34.24 | M42: 0.01 | N42: =VLE_PREoS_14Cells_binary_Mwi_Tci_Pci_wi_kijm_lijm_KiInitial_TinC_PinPa($E$8:$E$9,$F$8:$F$9,$G$8:$G$9,$H$8:$H$9,$O$8:$P$9,$S$8:$T$9,L42:M42,D42,I42*1000000) -> 0.9963850901 | O42: 0.003614909903 | P42: 992627.6787 | Q42: 3034.375634 | R42: 13.01776911 | S42: 0.01859955139 | T42: 0.9814004486 | U42: 992657.2694 | V42: 3034.373571 | W42: 875.5087223 | X42: 53.57038292 | Y42: 0.00368341986 | Z42: 6.87585128e-05 | AA42: 4 | AC42: 14 | AD42: No. Iter.
D43: 150 | E43: 2.0265 | F43: 0.942 | G43: 0.0046 | H43: 17.16 | I43: 2.0265 | J43: 0.02071254318 | K43: -0.002353877968 | L43: 17.16 | M43: 0.01 | N43: =VLE_PREoS_14Cells_binary_Mwi_Tci_Pci_wi_kijm_lijm_KiInitial_TinC_PinPa($E$8:$E$9,$F$8:$F$9,$G$8:$G$9,$H$8:$H$9,$O$8:$P$9,$S$8:$T$9,L43:M43,D43,I43*1000000) -> 0.997753878 | O43: 0.002246122032 | P43: 1954883.228 | Q43: 3134.489542 | R43: 26.39524145 | S43: 0.03728745682 | T43: 0.9627125432 | U43: 1954915.616 | V43: 3134.487523 | W43: 874.5592408 | X43: 26.75843201 | Y43: 0.002333118071 | Z43: 8.719188294e-05 | AA43: 5
D44: 150 | E44: 3.03975 | F44: 0.9132 | G44: 0.0039 | H44: 11.48 | I44: 3.03975 | J44: 0.03079681895 | K44: -0.002039352758 | L44: 11.48 | M44: 0.01 | N44: =VLE_PREoS_14Cells_binary_Mwi_Tci_Pci_wi_kijm_lijm_KiInitial_TinC_PinPa($E$8:$E$9,$F$8:$F$9,$G$8:$G$9,$H$8:$H$9,$O$8:$P$9,$S$8:$T$9,L44:M44,D44,I44*1000000) -> 0.9981393528 | O44: 0.001860647242 | P44: 2885120.34 | Q44: 3238.83906 | R44: 40.23574975 | S44: 0.05600318105 | T44: 0.943996819 | U44: 2885339.582 | V44: 3238.824426 | W44: 873.6154419 | X44: 17.82290459 | Y44: 0.001971031263 | Z44: 0.0001105897893 | AA44: 5
D45: 150 | E45: 4.053 | F45: 0.8846 | G45: 0.0036 | H45: 8.634 | I45: 4.053 | J45: 0.04067509527 | K45: -0.001866544429 | L45: 8.634 | M45: 0.01 | N45: =VLE_PREoS_14Cells_binary_Mwi_Tci_Pci_wi_kijm_lijm_KiInitial_TinC_PinPa($E$8:$E$9,$F$8:$F$9,$G$8:$G$9,$H$8:$H$9,$O$8:$P$9,$S$8:$T$9,L45:M45,D45,I45*1000000) -> 0.9982665444 | O45: 0.001733455571 | P45: 3784629.511 | Q45: 3347.648424 | R45: 54.54817191 | S45: 0.07472490473 | T45: 0.9252750953 | U45: 3784750.39 | V45: 3347.639787 | W45: 872.679331 | X45: 13.35922137 | Y45: 0.001873448859 | Z45: 0.000140236381 | AA45: 6
D46: 150 | E46: 5.06625 | F46: 0.8561 | G46: 0.0035 | H46: 6.925 | I46: 5.06625 | J46: 0.05044494103 | K46: -0.001778314974 | L46: 6.925 | M46: 0.05 | N46: =VLE_PREoS_14Cells_binary_Mwi_Tci_Pci_wi_kijm_lijm_KiInitial_TinC_PinPa($E$8:$E$9,$F$8:$F$9,$G$8:$G$9,$H$8:$H$9,$O$8:$P$9,$S$8:$T$9,L46:M46,D46,I46*1000000) -> 0.998278315 | O46: 0.001721685026 | P46: 4654696.13 | Q46: 3461.154922 | R46: 69.33886111 | S46: 0.09345505897 | T46: 0.906544941 | U46: 4655083.799 | V46: 3461.125183 | W46: 871.7503501 | X46: 10.68190771 | Y46: 0.001899172283 | Z46: 0.0001777933619 | AA46: 6
D47: 200 | E47: 1.01325 | F47: 0.975 | G47: 0.0042 | H47: 38.23 | I47: 1.01325 | J47: 0.008155080248 | K47: 0.01437220819 | L47: 38.23 | M47: 0.05 | N47: =VLE_PREoS_14Cells_binary_Mwi_Tci_Pci_wi_kijm_lijm_KiInitial_TinC_PinPa($E$8:$E$9,$F$8:$F$9,$G$8:$G$9,$H$8:$H$9,$O$8:$P$9,$S$8:$T$9,L47:M47,D47,I47*1000000) -> 0.9814277918 | O47: 0.01857220819 | P47: 983999.2226 | Q47: 16320.67695 | R47: 12.01812432 | S47: 0.01684491975 | T47: 0.9831550802 | U47: 984013.7714 | V47: 16320.57691 | W47: 845.8057181 | X47: 58.26253887 | Y47: 0.01889041573 | Z47: 0.0003242291891 | AA47: 4
D48: 200 | E48: 2.0265 | F48: 0.9499 | G48: 0.0335 | H48: 19.29 | I48: 2.0265 | J48: 0.01614802145 | K48: -0.02262313192 | L48: 19.29 | M48: 0.05 | N48: =VLE_PREoS_14Cells_binary_Mwi_Tci_Pci_wi_kijm_lijm_KiInitial_TinC_PinPa($E$8:$E$9,$F$8:$F$9,$G$8:$G$9,$H$8:$H$9,$O$8:$P$9,$S$8:$T$9,L48:M48,D48,I48*1000000) -> 0.9891231319 | O48: 0.01087686808 | P48: 1962598.94 | Q48: 16818.66845 | R48: 23.84801603 | S48: 0.03395197855 | T48: 0.9660480215 | U48: 1962612.305 | V48: 16818.65803 | W48: 844.7528001 | X48: 29.13300415 | Y48: 0.01125913809 | Z48: 0.0003864736378 | AA48: 5
D49: 200 | E49: 3.03975 | F49: 0.9253 | G49: 0.0303 | H49: 12.98 | I49: 3.03975 | J49: 0.02365111655 | K49: -0.02181670682 | L49: 12.98 | M49: 0.05 | N49: =VLE_PREoS_14Cells_binary_Mwi_Tci_Pci_wi_kijm_lijm_KiInitial_TinC_PinPa($E$8:$E$9,$F$8:$F$9,$G$8:$G$9,$H$8:$H$9,$O$8:$P$9,$S$8:$T$9,L49:M49,D49,I49*1000000) -> 0.9915167068 | O49: 0.008483293182 | P49: 2920678.527 | Q49: 17335.17739 | R49: 35.93963775 | S49: 0.05104888345 | T49: 0.9489511166 | U49: 2920770.186 | V49: 17335.13097 | W49: 843.6989834 | X49: 19.42288724 | Y49: 0.008939652458 | Z49: 0.0004602638294 | AA49: 5
D50: 200 | E50: 4.053 | F50: 0.9011 | G50: 0.0294 | H50: 9.814 | I50: 4.053 | J50: 0.03076625254 | K50: -0.02196597978 | L50: 9.814 | M50: 0.05 | N50: =VLE_PREoS_14Cells_binary_Mwi_Tci_Pci_wi_kijm_lijm_KiInitial_TinC_PinPa($E$8:$E$9,$F$8:$F$9,$G$8:$G$9,$H$8:$H$9,$O$8:$P$9,$S$8:$T$9,L50:M50,D50,I50*1000000) -> 0.9925659798 | O50: 0.00743402022 | P50: 3859054.656 | Q50: 17870.88343 | R50: 48.29016126 | S50: 0.06813374746 | T50: 0.9318662525 | U50: 3859402.814 | V50: 17870.72653 | W50: 842.6439722 | X50: 14.56790529 | Y50: 0.007977561372 | Z50: 0.0005476121114 | AA50: 5
D51: 200 | E51: 5.06625 | F51: 0.8775 | G51: 0.0293 | H51: 7.924 | I51: 5.06625 | J51: 0.03731045326 | K51: -0.02236072417 | L51: 7.924 | M51: 0.05 | N51: =VLE_PREoS_14Cells_binary_Mwi_Tci_Pci_wi_kijm_lijm_KiInitial_TinC_PinPa($E$8:$E$9,$F$8:$F$9,$G$8:$G$9,$H$8:$H$9,$O$8:$P$9,$S$8:$T$9,L51:M51,D51,I51*1000000) -> 0.9930607242 | O51: 0.006939275832 | P51: 4778535.166 | Q51: 18426.5168 | R51: 60.89564619 | S51: 0.08518954674 | T51: 0.9148104533 | U51: 4778679.059 | V51: 18426.46272 | W51: 841.589682 | X51: 11.65707252 | Y51: 0.007585479383 | Z51: 0.0006507190695 | AA51: 6
E54: ﻿Table I. Phase Equilibrium Data for Carbon Dioxide (2)with Aromatic Solvents (1)
F55: Carbon Dioxide-Naphthalene
E56: T."C | F56: P [atm] | G56: x2 | H56: y2 | I56: K2 | L56: K9
E57: 100 | F57: 10 | G57: 0.0331 | H57: 0.9921 | I57: 29.97
F58: 20 | G58: 0.0661 | H58: 0.9934 | I58: 15.03
F59: 30 | G59: 0.0989 | H59: 0.9938 | I59: 10.05
F60: 40 | G60: 0.1315 | H60: 0.994 | I60: 7.559
F61: 50 | G61: 0.1639 | H61: 0.9941 | I61: 6.065
E62: 125 | F62: 10 | G62: 0.0293 | H62: 0.9777 | I62: 33.37
F63: 20 | G63: 0.0586 | H63: 0.9811 | I63: 16.74
F64: 30 | G64: 0.0876 | H64: 0.9822 | I64: 11.21
F65: 40 | G65: 0.1164 | H65: 0.9828 | I65: 8.443
F66: 50 | G66: 0.1449 | H66: 0.9831 | I66: 6.785
E67: 150 | F67: 10 | G67: 0.0267 | H67: 0.9413 | I67: 35.25
F68: 20 | G68: 0.0535 | H68: 0.9493 | I68: 17.74
F69: 30 | G69: 0.08 | H69: 0.952 | I69: 11.9
F70: 40 | G70: 0.1062 | H70: 0.9533 | I70: 8.976
F71: 50 | G71: 0.132 | H71: 0.9541 | I71: 7.228
F73: Carbon Dioxide-Biphenyl | L73: Carbon Dioxide (1) -Biphenyl (2)
E74: T."C | F74: P [atm] | G74: x2 | H74: y2 | I74: K2 | K74: T [C] | L74: P {MPa] | M74: x2 | N74: y2 | O74: K1
E75: 100 | F75: 10 | G75: 0.0357 | H75: 0.9992 | I75: 27.99 | K75: 100 | L75: =F75*0.101325 -> 1.01325 | M75: =1-G75 -> 0.9643 | N75: =1-H75 -> 0.0008 | O75: 27.99
F76: 20 | G76: 0.0714 | H76: 0.9995 | I76: 14 | K76: 100 | L76: =F76*0.101325 -> 2.0265 | M76: =1-G76 -> 0.9286 | N76: =1-H76 -> 0.0005 | O76: 14
F77: 30 | G77: 0.1069 | H77: 0.9996 | I77: 9.351 | K77: 100 | L77: 3.03975 | M77: 0.8931 | N77: 0.0004 | O77: 9.351
F78: 40 | G78: 0.1422 | H78: 0.9997 | I78: 7.03 | K78: 100 | L78: 4.053 | M78: 0.8578 | N78: 0.0003 | O78: 7.03
F79: 50 | G79: 0.1773 | H79: 0.9997 | I79: 5.638 | K79: 100 | L79: 5.06625 | M79: 0.8227 | N79: 0.0003 | O79: 5.638
E80: 150 | F80: 10 | G80: 0.029 | H80: 0.993 | I80: 34.24 | K80: 150 | L80: 1.01325 | M80: 0.971 | N80: 0.007 | O80: 34.24
F81: 20 | G81: 0.058 | H81: 0.9954 | I81: 17.16 | K81: 150 | L81: 2.0265 | M81: 0.942 | N81: 0.0046 | O81: 17.16
F82: 30 | G82: 0.0868 | H82: 0.9961 | I82: 11.48 | K82: 150 | L82: 3.03975 | M82: 0.9132 | N82: 0.0039 | O82: 11.48
F83: 40 | G83: 0.1154 | H83: 0.9964 | I83: 8.634 | K83: 150 | L83: 4.053 | M83: 0.8846 | N83: 0.0036 | O83: 8.634
F84: 50 | G84: 0.1439 | H84: 0.9965 | I84: 6.925 | K84: 150 | L84: 5.06625 | M84: 0.8561 | N84: 0.0035 | O84: 6.925
E85: 200 | F85: 10 | G85: 0.025 | H85: 0.9958 | I85: 38.23 | K85: 200 | L85: 1.01325 | M85: 0.975 | N85: 0.0042 | O85: 38.23
F86: 20 | G86: 0.0501 | H86: 0.9665 | I86: 19.29 | K86: 200 | L86: 2.0265 | M86: 0.9499 | N86: 0.0335 | O86: 19.29
F87: 30 | G87: 0.0747 | H87: 0.9697 | I87: 12.98 | K87: 200 | L87: 3.03975 | M87: 0.9253 | N87: 0.0303 | O87: 12.98
F88: 40 | G88: 0.0989 | H88: 0.9706 | I88: 9.814 | K88: 200 | L88: 4.053 | M88: 0.9011 | N88: 0.0294 | O88: 9.814
F89: 50 | G89: 0.1225 | H89: 0.9707 | I89: 7.924 | K89: 200 | L89: 5.06625 | M89: 0.8775 | N89: 0.0293 | O89: 7.924
F91: Carbon Dioxide-2-Methylnaphthalene
E92: T."C | F92: P [atm] | G92: x2 | H92: y2 | I92: K2
E93: 50 | F93: 10 | G93: 0.0537 | H93: 0.9998 | I93: 18.62
F94: 20 | G94: 0.1073 | H94: 0.9999 | I94: 9.319
F95: 30 | G95: 0.1606 | H95: 0.9999 | I95: 6.226
F96: 40 | G96: 0.2135 | H96: 1 | I96: 4.684
F97: 50 | G97: 0.2658 | H97: 1 | I97: 3.762
E98: 100 | F98: 10 | G98: 0.0412 | H98: 0.9897 | I98: 24.02
F99: 20 | G99: 0.0821 | H99: 0.9902 | I99: 12.06
F100: 30 | G100: 0.1227 | H100: 0.9904 | I100: 8.072
F101: 40 | G101: 0.163 | H101: 0.9905 | I101: 6.077
F102: 50 | G102: 0.203 | H102: 0.9906 | I102: 4.88
F104: Carbon Dioxide-1-Naphthol
E105: T."C | F105: P [atm] | G105: x2
E106: 120 | F106: 10 | G106: 0.0198
F107: 20 | G107: 0.0392
F108: 30 | G108: 0.0581
F109: 40 | G109: 0.0765
F110: 50 | G110: 0.0944
E111: 180 | F111: 10 | G111: 0.0167
F112: 20 | G112: 0.0331
F113: 30 | G113: 0.0489
F114: 40 | G114: 0.0641
F115: 50 | G115: 0.0788
F117: Carbon Dioxide-2-Naphthol
E118: T."C | F118: P [atm] | G118: x2
E119: 140 | F119: 10 | G119: 0.0194
F120: 20 | G120: 0.0384
F121: 30 | G121: 0.0569
F122: 40 | G122: 0.0749
F123: 50 | G123: 0.0924
E124: 200 | F124: 10 | G124: 0.0159
F125: 20 | G125: 0.0314
F126: 30 | G126: 0.0465
F127: 40 | G127: 0.0609
F128: 50 | G128: 0.0748
